Workbook

Sheet Liste versions (hidden)
A1: Liste des versions de la feuille excel
A3: Date | B3: Version | C3: Observation
A4: 2024-01-31 | B4: 1 | C4: 1ère émission
A5: 2024-02-05 | B5: 2 | C5: Test suplémentaire sur calcul stockage avec pluie optionnelle - Modification forme - Protection VBA - Ajout onglet "Coeff"
A6: 2025-02-26 | B6: 3 | C6: Modification mineure forme Fiche calcul débit : Refonte pour prise en compte a et b fournis par utilisateur et coef. ruissellement variable en fonction de la période de retour. Onglet Coefficient : indication de la période de retour
A7: 2025-03-18 | B7: 4 | C7: Modification mineure forme Fiche Stockage - calcul avec Montana optionnel Calcul V1-V3 réalisé avec I(mm/h)=at(mn)-b Correction pour réaliser calcul avec t en h
A8: 2025-04-21 | B8: 5 | C8: Modification des unités perméabilités pour infiltration. Calcul en mm/h

Sheet Parametre (hidden)
A1: Données pluies
A3: Pluie Guide sur les modalités de Gestion des eaux Pluviales à la Réunion - 2012 (0,1 h à 2h)
E4: i en mm/h et d en h
A5: Zone | B5: Coefficient A | C5: Coefficient B
A6: 1 | B6: 60 | C6: 0.33
A7: 2 | B7: 72 | C7: 0.33
A8: 3 | B8: 85 | C8: 0.33
A9: 4 | B9: 100 | C9: 0.33
A10: 5 | B10: 130 | C10: 0.33
A11: Retenu | B11: =IF(Projet!C1=TRUE, CHOOSE(Projet!C7,Parametre!B6,Parametre!B7,Parametre!B8,Parametre!B9,Parametre!B10),"") ->  | C11: =IF(Projet!C1=TRUE,0.33,"") -> 
A13: T (ans) | B13: Ratio pluie iT/i10ans
A14: 2 | B14: =0.186*LN(A14)+0.572 -> 0.7009253756
A15: 5 | B15: =0.186*LN(A15)+0.572 -> 0.8713554517
A16: 10 | B16: 1
A17: 20 | B17: =0.186*LN(A17)+0.572 -> 1.129206203
A18: 30 | B18: =0.186*LN(A18)+0.572 -> 1.204622713

Sheet Introduction
A1: Introduction
A2: La présente feuille de calcul comprend des outils d'aide au dimensionnement pour les projets liés aux eaux pluviales
A3: en application du Guide sur la gestion des eaux pluviales à la Réunion (octobre 2012)
A4: Les fiches proposées permettent de conduire les calculs courants. Elles permettent aussi de présenter les résultats
A5: attendus dans le cadre de la demande simplifiée relative à la rubrique 2.1.5.0 de la nomenclature.
A7: Fiche de calculs proposées
A8: Les fiches mettent en œuvre les méthodes présentées dans les documents suivants :
A9: - Guide sur la gestion des eaux pluviales à la Réunion - octobre 2012
A10: - Doctrine pour l'instruction de la rubrique 2.1.5.0 - Complément au Guide
A12: Les fiches de calculs proposées sont les suivantes :
A13: - Fiche "Debit": Calcul de débit avant et après aménagement.
A14: - Fiche "Stockage" : Calcul d'un ouvrage de stockage avec un débit de fuite fixe.
A15: - Fiche "Orifice_Qfixe" : Calcul d'une régulation avec un orifice
A16: - Fiche "Orifice_Qvar" : Calcul d'un ouvrage de régulation composé de 1 ou deux orifices.
A17: - Fiche "Deversoir" : Calcul d'un ouvrage déversoir.
A18: - Fiche "Réseau" : Calcul de la capacité d'évacuation d'un élément de réseau à surface libre
A20: Information pour remplir les fiches
B21: Case à renseigner pour que le calcul soit exécuté.
C22: Bouton à cliquer pour lancer certains calculs
C23: (Temps de concentration par la méthode de Richards par exemple)
A26: Prérequis technique
A27: La macro excel est dotée de fonctions d’optimisation, notamment pour la recherche de l’optimum des multi-orifices.
A29: Il faut au préalable activer le solveur. Pour cela :
A30: a. Ouvrir Excel.
A31: b. Cliquez sur "Fichier" ou l'onglet "Office" (selon votre version d'Excel).
A32: c. Choisissez "Options".
A33: d. Dans la boîte de dialogue "Options Excel", cliquez sur "Add-Ins" (ou "Compléments" en français).
A34: e. Au bas de la fenêtre, dans la zone "Gérer", assurez-vous que "Compléments Excel" est sélectionné,
A35: puis cliquez sur "Atteindre...".
A36: f. Cochez la case "Solveur" et cliquez sur "OK".
A38: Puis
A39: a. Ouvrir l'éditeur VBA : soit cliquer sur onglet "Développeur" / icone "Visual Basic" ou utiliser le racouci : ALT + F11
A40: b. Aller dans le menu "Outils" > "Références".
A41: b. Dans la liste des références disponibles, cherchez "Solver" ou "Solveur" et cochez la case correspondante.
A42: c. Cliquez sur "OK".
A43: =CONCATENATE("Version ",(MAX('Liste versions'!$B$4:$B$30))," de la feuille Excel du ",DAY(MAX('Liste versions'!$A$4:$A$30)),"/",MONTH(MAX('Liste versions'!$A$4:$A$30)),"/",YEAR(MAX('Liste versions'!$A$4:$A$30))," - hydro-expertise.com") -> Version 5 de la feuille Excel du 21/4/2025 - hydro-expertise.com | H43: DEAL Réunion

Sheet Debit (hidden)
A5: N° Fiche
A6: Nom Projet | B6: =IF(Projet!C1=TRUE,Projet!C6,"") -> 
A7: Nom du bassin versant
A8: Zone pluviométrique | C8: =IF(Projet!C1=TRUE,Projet!C7,"") -> 
B10: Données bassin versant
F11: Actuel | H11: Projet
O12: Test
B13: Surface (m²) | O13: Test IN 1 | P13: =Projet!C1 -> FALSE
B14: Coefficient de ruissellement décennal (Cr) | O14: Test IN 2 | P14: =IF(AND(F13<>"",F14<>"",F16<>"",F17<>"",F18<>""),TRUE,FALSE) -> FALSE | R14: =IF(AND(H13<>"",H14<>"",H16<>"",H17<>"",H18<>""),TRUE,FALSE) -> FALSE
O15: Test IN 2 et 3 | P15: =AND(P14,C39<>"",D39<>"") -> FALSE | R15: =AND(R14,I39<>"",J39<>"") -> FALSE
B16: Plus long cheminement hydraulique (m) | O16: Test QE IN 4 | P16: =IF(AND(C39<>"",D39<>""),TRUE,FALSE) -> FALSE
B17: Altitude point haut (m)
B18: Altitude point bas (m) | O18: Test IN 1 : Données de projet et pluie
O19: Test In 2 : Données "Données"
B20: Pente | F20: =IF(P14=TRUE,(F17-F18)/F16,"") ->  | H20: =IF(R14=TRUE,(H17-H18)/H16,"") ->  | O20: Test In 3 : Données "Calcul temps de concentration"
O21: Test In 4 : Données Vitesse de "Calcul temps de concentration"
B23: Données pluviographiques | O23: Type données | P23: 1
B24: Données de pluies utilisées | O24: Guide 2012
B25: Si choix "Guide 2012", les paramètres de pluie ne sont pas à renseigner. | O25: Valeurs a et b ci-dessous
E26: Durée de validité intervalle (mn) | H26: Avec : I (mm/heure)=a. t(heure)-b | O26: 2 ans | P26: =AND(E28<>"",F28<>"") -> FALSE | Q26: =AND(E28<>"",F28<>"",H28<>"",I28<>"") -> FALSE
E27: tmin | F27: tmax | H27: a | I27: b | O27: 5 ans | P27: =AND(E29<>"",F29<>"") -> FALSE | Q27: =AND(E29<>"",F29<>"",H29<>"",I29<>"") -> FALSE
C28: 2 ans | J28: =IF(AND(P26,F28<=E28),"Intervalle temps décroissant","") ->  | O28: 10 ans | P28: =AND(E30<>"",F30<>"") -> FALSE | Q28: =AND(E30<>"",F30<>"",H30<>"",I30<>"") -> FALSE
C29: 5 ans | J29: =IF(AND(P27,F29<=E29),"Intervalle temps décroissant","") ->  | O29: 20 ans | P29: =AND(E31<>"",F31<>"") -> FALSE | Q29: =AND(E31<>"",F31<>"",H31<>"",I31<>"") -> FALSE
C30: 10 ans | O30: 30 ans | P30: =AND(E32<>"",F32<>"") -> FALSE | Q30: =AND(E32<>"",F32<>"",H32<>"",I32<>"") -> FALSE
C31: 20 ans
C32: 30 ans
O34: Paramètre pluie Guide 2012
B35: Calcul du temps de concentration
B36: Actuel | H36: Projet | O36: a | P36: b
O37: =Parametre!$B$11 ->  | P37: =Parametre!$C$11 -> 
A38: Tc : Méthode rectangles équivalent (mn) | B38: Tronçon | C38: L. tronçon (m) | D38: V. tronçon (m/s) | E38: Tci (mn) | F38: Tc (mn) | H38: Tronçon | I38: L. tronçon (m) | J38: V. tronçon (m/s) | K38: Tci | L38: Tc (mn)
B39: 1 | E39: =IF(AND(C39<>0,D39<>0),C39/D39/60,"") ->  | F39: =IF(AND(C39<>0,D39<>0),SUM(E39:E44),"") ->  | H39: 1 | K39: =IF(AND(I39<>0,J39<>0),I39/J39/60,"") ->  | L39: =IF(AND(I39<>0,J39<>0),SUM(K39:K44),"") -> 
B40: 2 | E40: =IF(AND(C40<>0,D40<>0),C40/D40/60,"") ->  | H40: 2 | K40: =IF(AND(I40<>0,J40<>0),I40/J40/60,"") -> 
B41: 3 | H41: 3
B42: 4 | H42: 4
B43: 5 | H43: 5
B44: 6 | H44: 6
A46: Tc :Kirpich2 (mn) | B46: =IF(P15,4*(F13/100/10000*F16/1000)^0.25/F20^0.375,"") ->  | H46: =IF(R15,4*(H13/100/10000*H16/1000)^0.25/H20^0.375,"") -> 
A48: Tc : Richards (mn)
A50: Itc Richards (mm/h) | F50: =$O$37*(0.186*LN(10)+0.572)*(B48/60)^-P37 ->  | L50: =$O$37*(0.186*LN(10)+0.572)*(H48/60)^-0.33 -> 
A51: Htc Richards (mm) | F51: =F50/60*B48 ->  | L51: =L50/60*H48 -> 
A52: R | F52: =F51+F51/(B48/60) ->  | L52: =L51+L51/(H48/60) -> 
A53: K | F53: =0.094/(F14*F52-8)^0.478 ->  | L53: =0.094/(H14*L52-8)^0.478 -> 
A54: A=Tc3/(Tc+1) | F54: =((B48/60)^3)/(B48/60+1) -> 0 | L54: =((H48/60)^3)/(H48/60+1) -> 0
A55: B=9.81 KL²/(CRP) | F55: =((9.81*F53*(F16/1000)^2))/F14/F52/F20 ->  | L55: =((9.81*L53*(H16/1000)^2))/H14/L52/H20 -> 
A56: A=B | F56: =F54-F55 ->  | L56: =L54-L55 -> 
A57: Tc : Passini (mn) | B57: =IF(P15,0.108*(F13/100/10000*F16/1000)^(1/3)/SQRT(F20)*60,"") ->  | H57: =IF(R15,0.108*(H13/100/10000*H16/1000)^(1/3)/SQRT(H20)*60,"") -> 
B59: Calcul selon Guide 2012 et valeurs retenues
B60: Tc Guide 2012 (mn) | D60: =IF(P14=TRUE,IF(F13/10000<=20," Moyenne : Méthode rectangles équivalents / Kirpich2 / Richards",IF(AND(F13/10000>20,F13/10000<=200)," Moyenne Méthode rectangles équivalents / Passini / Richards","Passini / Richards")),"") ->  | H60: Tc Guide 2012 (mn) | J60: =IF(R14=TRUE,IF(H13/10000<=20," Moyenne : Méthode rectangles équivalents / Kirpich2 / Richards",IF(AND(H13/10000>20,H13/10000<=200)," Moyenne Méthode rectangles équivalents / Passini / Richards","Passini / Richards")),"") -> 
D61: =IF(P15,IF(F13/10000<=20,AVERAGE(F39,B46,B48),IF(AND(F13/10000>20,F13/10000<=200),AVERAGE(F39,B48,B57),AVERAGE(B48,B57))),"") ->  | J61: =IF(R15,IF(H13/10000<=20,AVERAGE(L39,H46,H48),IF(AND(H13/10000>20,H13/10000<=200),AVERAGE(L39,H48,H57),AVERAGE(H48,H57))),"") -> 
B63: Tc Actuel retenu (mn) | H63: Tc Projet retenu (mn)
B65: Résultats - débits | P65: Guide 2012 | T65: Retenu | Y65: Etat actuel | AH65: Etat Projet
C66: Actuel | H66: Projet | L66: Incidence | P66: Tmin | Q66: Tmax | R66: a | S66: b | T66: Tmin | U66: Tmax | V66: a | W66: b | Y66: Tc | Z66: Données | AA66: Présence tc | AB66: Test a et b | AC66: Tc dans plage | AD66: Tc pas dans la plage + autre valeurs prsentes | AE66: I | AF66: Q | AH66: Tc | AI66: Données | AJ66: Présence tc | AK66: Test a et b | AL66: Tc dans plage | AM66: Tc pas dans la plage + autre valeurs prsentes | AN66: I | AO66: Q
O67: 2 ans | P67: 6 | Q67: 120 | R67: =IF($O$37="","",$O$37*Parametre!B14) ->  | S67: =$P$37 ->  | T67: =IF($P$23=1,P67,E28) -> 6 | U67: 120 | V67: =IF($P$23=1,R67,H28) ->  | Y67: =$F$63 -> 0 | Z67: =$P$14 -> FALSE | AA67: =IF($F$63<>"",TRUE,FALSE) -> FALSE | AB67: =AND($T67<>0,$U67<>0,V67<>0,W67<>0) -> TRUE | AC67: =AND(Y67>=$T67,Y67<=$U67) -> FALSE | AD67: =AND(NOT(AC67),AA67:AB67) -> FALSE | AE67: =IF(AND(Z67:AC67),V67*(Y67/60)^-W67,"") ->  | AF67: =IF(AND(Z67:AC67),(1/6)*C69*AE67/60*$F$13/10000*1000,"") ->  | AH67: =$L$63 -> 0 | AI67: =$R$14 -> FALSE | AJ67: =IF($L$63<>"",TRUE,FALSE) -> FALSE | AK67: =AND($T67<>0,$U67<>0,V67<>0,W67<>0) -> TRUE | AL67: =AND(AH67>=$T67,AH67<=$U67) -> FALSE | AM67: =AND(NOT(AL67),AJ67:AK67) -> FALSE | AN67: =IF(AND(AI67:AL67),V67*(AH67/60)^-W67,"") ->  | AO67: =IF(AND(AI67:AL67),(1/6)*H69*AN67/60*$H$13/10000*1000,"") -> 
C68: Cr | D68: I (mm/h) | E68: Qea (l/s) | H68: Cr | I68: I (mm/h) | J68: Qep (l/s) | L68: Qep-Qea (l/s) | O68: 5 ans | P68: =P67 -> 6 | Q68: 120 | R68: =IF($O$37="","",$O$37*Parametre!B15) ->  | S68: =$P$37 ->  | T68: 6 | U68: 120 | Y68: =$F$63 -> 0 | Z68: =$P$14 -> FALSE | AA68: =IF($F$63<>"",TRUE,FALSE) -> FALSE | AB68: =AND($T68<>0,$U68<>0,V68<>0,W68<>0) -> TRUE | AC68: =AND(Y68>=$T68,Y68<=$U68) -> FALSE | AD68: =AND(NOT(AC68),AA68:AB68) -> FALSE | AE68: =IF(AND(Z68:AC68),V68*(Y68/60)^-W68,"") ->  | AF68: =IF(AND(Z68:AC68),(1/6)*C70*AE68/60*$F$13/10000*1000,"") ->  | AH68: =$L$63 -> 0 | AI68: =$R$14 -> FALSE | AJ68: =IF($L$63<>"",TRUE,FALSE) -> FALSE | AK68: =AND($T68<>0,$U68<>0,V68<>0,W68<>0) -> TRUE | AL68: =AND(AH68>=$T68,AH68<=$U68) -> FALSE | AM68: =AND(NOT(AL68),AJ68:AK68) -> FALSE | AN68: =IF(AND(AI68:AL68),V68*(AH68/60)^-W68,"") ->  | AO68: =IF(AND(AI68:AL68),(1/6)*H70*AN68/60*$H$13/10000*1000,"") -> 
B69: 2 ans | D69: =IF(AND(AA67:AC67),AE67,"") ->  | E69: =IF(AND(C69<>"",D69<>""),AF67,"") ->  | I69: =IF(AND(AJ67:AL67),AN67,"") ->  | J69: =IF(AND(H69<>"",I69<>""),AO67,"") ->  | L69: =IF(AND(E69<>"",J69<>""),J69-E69,"") ->  | O69: 10 ans | P69: =P68 -> 6 | Q69: 120 | R69: =IF($O$37="","",$O$37*Parametre!B16) ->  | T69: 6 | U69: 120 | Y69: 0 | Z69: FALSE | AA69: =IF($F$63<>"",TRUE,FALSE) -> FALSE | AB69: TRUE | AC69: FALSE | AD69: FALSE | AH69: 0 | AI69: FALSE | AJ69: =IF($L$63<>"",TRUE,FALSE) -> FALSE | AK69: TRUE | AL69: FALSE | AM69: FALSE
B70: 5 ans | D70: =IF(AND(AA68:AC68),AE68,"") ->  | E70: =IF(AND(C70<>"",D70<>""),AF68,"") ->  | I70: =IF(AND(AJ68:AL68),AN68,"") ->  | J70: =IF(AND(H70<>"",I70<>""),AO68,"") ->  | L70: =IF(AND(E70<>"",J70<>""),J70-E70,"") ->  | O70: 20 ans | P70: 6 | Q70: 120 | R70: =IF($O$37="","",$O$37*Parametre!B17) ->  | T70: 6 | U70: 120 | Y70: 0 | Z70: FALSE | AA70: =IF($F$63<>"",TRUE,FALSE) -> FALSE | AB70: TRUE | AC70: FALSE | AD70: FALSE | AH70: 0 | AI70: FALSE | AJ70: =IF($L$63<>"",TRUE,FALSE) -> FALSE | AK70: TRUE | AL70: FALSE | AM70: FALSE
B71: 10 ans | C71: =IF(F14<>"",F14,"") ->  | E71: =IF(AND(C71<>"",D71<>""),AF69,"") ->  | H71: =IF(H14<>"",H14,"") ->  | J71: =IF(AND(H71<>"",I71<>""),AO69,"") ->  | O71: 30 ans | P71: 6 | Q71: 120 | R71: =IF($O$37="","",$O$37*Parametre!B18) ->  | T71: 6 | U71: 120 | Y71: 0 | Z71: FALSE | AA71: =IF($F$63<>"",TRUE,FALSE) -> FALSE | AB71: TRUE | AC71: FALSE | AD71: FALSE | AH71: 0 | AI71: FALSE | AJ71: =IF($L$63<>"",TRUE,FALSE) -> FALSE | AK71: TRUE | AL71: FALSE | AM71: FALSE
B72: 20 ans | E72: =IF(AND(C72<>"",D72<>""),AF70,"") ->  | J72: =IF(AND(H72<>"",I72<>""),AO70,"") -> 
B73: 30 ans | E73: =IF(AND(C73<>"",D73<>""),AF71,"") ->  | J73: =IF(AND(H73<>"",I73<>""),AO71,"") -> 
C74: =IF(OR(AD67:AD71),"Tc hors zone validité coef. pluie","") ->  | H74: =IF(OR(AM67:AM71),"Tc hors zone validité coef. pluie","") -> 
A75: =CONCATENATE("Version ",(MAX('Liste versions'!$B$4:$B$30))," de la feuille Excel du ",DAY(MAX('Liste versions'!$A$4:$A$30)),"/",MONTH(MAX('Liste versions'!$A$4:$A$30)),"/",YEAR(MAX('Liste versions'!$A$4:$A$30))," - hydro-expertise.com") -> Version 5 de la feuille Excel du 21/4/2025 - hydro-expertise.com | K75: =Introduction!$H$43 -> DEAL Réunion

Sheet Projet
B1: Test 1 | C1: =IF(AND(C7<>""),TRUE,FALSE) -> FALSE | D1: Test zone pluie
A6: Nom du projet
A7: Zone pluie
A9: Date
A43: =CONCATENATE("Version ",(MAX('Liste versions'!$B$4:$B$30))," de la feuille Excel du ",DAY(MAX('Liste versions'!$A$4:$A$30)),"/",MONTH(MAX('Liste versions'!$A$4:$A$30)),"/",YEAR(MAX('Liste versions'!$A$4:$A$30))," - hydro-expertise.com") -> Version 5 de la feuille Excel du 21/4/2025 - hydro-expertise.com | H43: =Introduction!$H$43 -> DEAL Réunion

Sheet Coeff (hidden)
A4: N° Fiche
A5: Nom Projet | B5: =IF(Projet!C1=TRUE,Projet!C6,"") -> 
A6: Nom du bassin versant
A7: Zone pluviométrique | C7: =IF(Projet!C1=TRUE,Projet!C7,"") -> 
A9: Période de retour des coefficients de ruissellements proposés
L11: Période de retour
B12: Etat initial
I13: Indicateur présence valeur | J13: Indicateur complétude | L13: 2
A14: Information complémentaire (optionnelle) | C14: Nature occupation des sols | D14: Surface en m² (S) | E14: Coefficient ruissel (Cr) | F14: Surface active (S.Cr) en m² | I14: =OR(C15<>"",D15<>"",E15<>"") -> FALSE | J14: =AND(C15<>"",D15<>"",E15<>"") -> FALSE | K14: =IF(I14,AND(I14,J14),TRUE) -> TRUE | L14: 5
F15: =IF(AND(C15<>"",D15<>"",E15<>""),D15*E15,"") ->  | I15: FALSE | J15: FALSE | K15: =IF(I15,AND(I15,J15),TRUE) -> TRUE | L15: 10
F16: =IF(AND(C16<>"",D16<>"",E16<>""),D16*E16,"") ->  | I16: FALSE | J16: FALSE | K16: TRUE | L16: 20
I17: FALSE | J17: FALSE | K17: TRUE | L17: 30
I18: FALSE | J18: FALSE | K18: TRUE | L18: Retenue
I19: FALSE | J19: FALSE | K19: TRUE | L19: 1
I20: FALSE | J20: FALSE | K20: TRUE
I21: FALSE | J21: FALSE | K21: TRUE
I22: FALSE | J22: FALSE | K22: TRUE
I23: FALSE | J23: FALSE | K23: TRUE
I24: FALSE | J24: FALSE | K24: TRUE
I25: FALSE | J25: FALSE | K25: TRUE
I26: FALSE | J26: FALSE | K26: TRUE
J27: Indicateur | K27: =AND(K14:K26) -> TRUE
C28: Surface totale (ST) - m² | D28: =IF(AND(K27,SUM(F15:F27)>0,L19>1),SUM(D15:D27),"") ->  | J28: Indicateur présence
C29: Surface active totale (ST.Cm) - m² | D29: =IF(AND(K27,SUM(F15:F27)>0,L19>1),SUM(F15:F27),"") -> 
C30: Coeff. de ruissell. moyen (Cm) Etat initial | D30: =IF(AND(K27,SUM(F15:F27)>0,L19>1),D29/D28,"") -> 
B32: Etat projet
I33: Indicateur présence valeur | J33: Indicateur complétude
A34: Information complémentaire (optionnelle) | C34: Nature occupation des sols | D34: Surface en m² (S) | E34: Coefficient ruissel (Cr) | F34: Surface active (S.Cr) en m² | I34: =OR(C35<>"",D35<>"",E35<>"") -> FALSE | J34: =AND(C35<>"",D35<>"",E35<>"") -> FALSE | K34: =IF(I34,AND(I34,J34),TRUE) -> TRUE
F35: =IF(AND(C35<>"",D35<>"",E35<>""),D35*E35,"") ->  | I35: FALSE | J35: FALSE | K35: =IF(I35,AND(I35,J35),TRUE) -> TRUE
F36: =IF(AND(C36<>"",D36<>"",E36<>""),D36*E36,"") ->  | I36: FALSE | J36: FALSE | K36: TRUE
I37: FALSE | J37: FALSE | K37: TRUE
I38: FALSE | J38: FALSE | K38: TRUE
I39: FALSE | J39: FALSE | K39: TRUE
I40: FALSE | J40: FALSE | K40: TRUE
I41: FALSE | J41: FALSE | K41: TRUE
I42: FALSE | J42: FALSE | K42: TRUE
I43: FALSE | J43: FALSE | K43: TRUE
I44: FALSE | J44: FALSE | K44: TRUE
I45: FALSE | J45: FALSE | K45: TRUE
I46: FALSE | J46: FALSE | K46: TRUE
J47: Indicateur | K47: =AND(K34:K46) -> TRUE
C48: Surface totale (ST) - m² | D48: =IF(AND(K47,SUM(F35:F47)>0,L19>1),SUM(D35:D47),"") -> 
C49: Surface active totale (ST.Cm) - m² | D49: =IF(AND(K47,SUM(F35:F47)>0,L19>1),SUM(F35:F47),"") -> 
C50: Coeff. de ruissell. moyen (Cm) Etat Projet | D50: =IF(AND(K47,SUM(F35:F47)>0,L19>1),D49/D48,"") -> 
A51: =CONCATENATE("Version ",(MAX('Liste versions'!$B$4:$B$30))," de la feuille Excel du ",DAY(MAX('Liste versions'!$A$4:$A$30)),"/",MONTH(MAX('Liste versions'!$A$4:$A$30)),"/",YEAR(MAX('Liste versions'!$A$4:$A$30))," - hydro-expertise.com") -> Version 5 de la feuille Excel du 21/4/2025 - hydro-expertise.com | G51: DEAL Réunion

Sheet Stockage (hidden)
A1: N° Fiche | L1: Données générales/données débits de fuite | M1: Test1 (données entrées) | N1: =IF(AND(H17<>"",H18<>"",H19<>"",E24<>""),TRUE,FALSE) -> FALSE | P1: Méthode des pluies - débits fixe + pluie Guide 2012 | AD1: Intervalle 1 | AE1: Intervalle 2 | AF1: Intervalle 3
A2: Nom Projet | B2: =IF(Projet!C1=TRUE,Projet!C6,"") ->  | L2: Débit infiltration >0 | M2: Test 5 (infiltration) | N2: =IF(E25>0,TRUE,FALSE) -> FALSE | P2: Montana Guide 2012 | R2: t (mn) | S2: Pluie cumulée (mm) | T2: VEntrant (m3) | U2: VSortant (m3) | V2: VStocké (m3) | W2: Indicateur croissance | X2: Vmax | Y2: Tmax | Z2: Test QF2 (T>120) | AB2: Test Présence données | AD2: =OR(C41<>"",D41<>"",E41<>"",F41<>"") -> FALSE | AE2: =OR(C42<>"",D42<>"",E42<>"",F42<>"") -> FALSE | AF2: =OR(C43<>"",D43<>"",E43<>"",F43<>"") -> FALSE | AH2: t (mn) | AI2: Validité intervalle1 | AJ2: Pluie cumulée Intervalle1 | AK2: Validité intervalle2 | AL2: Pluie cumulée Intervalle2 | AM2: Validité intervalle3 | AN2: Pluie cumulée Intervalle3 | AO2: Pluie cumulée (mm) | AP2: VEntrant (m3) | AQ2: VSortant (m3) | AR2: VStocké (m3) | AS2: Indicateur max | AT2: Vmax | AU2: Tmax | AV2: Max intevalle | AW2: Test QF4 (T>max)
A3: Nom du BV | L3: Test présence Surface infiltration et Perméabilité | M3: Test 6 (données inflitration ) | N3: =IF(AND(J24<>"",J25<>""),TRUE,FALSE) -> FALSE | P3: a | Q3: =Parametre!$B$11*(0.186*LN(H19)+0.572) ->  | R3: 0 | S3: 0 | T3: =S3*$H$17*$H$18/1000 -> 0 | U3: =$E$26/1000*R3*60 ->  | V3: =T3-U3 ->  | W3: 0 | X3: =MAX(V3:V124) ->  | Y3: =MAX(W3:W124) ->  | Z3: =IF(Y3>120,TRUE,FALSE) ->  | AB3: Test Présence données complètes | AD3: =IF(AND(C41<>"",D41<>"",E41<>"",F41<>""),TRUE,FALSE) -> FALSE | AE3: =IF(AND(C42<>"",D42<>"",E42<>"",F42<>""),TRUE,FALSE) -> FALSE | AF3: =IF(AND(C43<>"",D43<>"",E43<>"",F43<>""),TRUE,FALSE) -> FALSE | AH3: =C41 -> 0 | AI3: =IF(AND(AH3>=$C$41,AH3<=$D$41),1,0) -> 1 | AJ3: =$E$41*(AH3/60)^-$F$41*AH3/60*AI3 ->  | AK3: =IF(AI3=1,0,IF(AND(AH3>$C$42,AH3<=$D$42),1,0)) -> 0 | AL3: 0 | AM3: =IF(OR(AI3=1,AK3=1),0,IF(AND(AH3>$C$43,AH3<=$D$43),1,0)) -> 0 | AN3: 0 | AO3: =AJ3+AL3+AN3 ->  | AP3: =AO3*$H$17*$H$18/1000 ->  | AQ3: =$E$26/1000*AH3*60 ->  | AR3: =AP3-AQ3 ->  | AS3: =IF(AR3=MAX($AR$3:$AR$5762),AH3,"") ->  | AT3: =MAX(AR3:AR5762) ->  | AU3: =MAX(AS3:AS5762) ->  | AV3: =IF(AD9,MAX(D41:D43),"") -> 0 | AW3: =IF(AU3>=AV3,TRUE,FALSE) -> 
A4: Nom Stockage | D4: =IF(D3<>"",CONCATENATE("S_",D3),"") ->  | L4: Calcul possible tte données présentes y compris infiltration | M4: Test 7 (calcul possible) | N4: =IF(N2=FALSE,N1,AND(N1,N3)) -> FALSE | P4: b | Q4: =Parametre!$C$11 ->  | R4: 1 | S4: =$Q$3*(R4/60)^-0.33*R4/60 ->  | T4: =S4*$H$17*$H$18/1000 ->  | V4: =T4-U4 ->  | W4: =IF(V4>V3,R4,"") ->  | AB4: Test croissance limites intervalles | AD4: =IF(AD3,IF(D41>=C41,TRUE,FALSE),"") ->  | AE4: =IF(AE3,IF(D42>=C42,TRUE,FALSE),"") ->  | AF4: =IF(AF3,IF(D43>=C43,TRUE,FALSE),"") ->  | AH4: =AH3+1 -> 1 | AI4: =IF(AND(AH4>$C$41,AH4<=$D$41),1,0) -> 0 | AJ4: =$E$41*(AH4/60)^-$F$41*AH4/60*AI4 -> 0 | AK4: 0 | AL4: =$E$42*((AH4/60)^-$F$42*AH4/60*AK4) -> 0 | AM4: =IF(OR(AI4=1,AK4=1),0,IF(AND(AH4>$C$43,AH4<=$D$43),1,0)) -> 0 | AN4: =$E$42*(AH4/60)^-$F$42*AH4/60*AM4 -> 0 | AO4: =AJ4+AL4+AN4 -> 0 | AP4: =AO4*$H$17*$H$18/1000 -> 0 | AQ4: =$E$26/1000*AH4*60 ->  | AR4: =AP4-AQ4 ->  | AS4: =IF(AR4=MAX($AR$3:$AR$5762),AH4,"") ->  | AW4: Test QF5 (T>max)
A5: Zone pluviométrique | C5: =IF(Projet!C1=TRUE,Projet!C7,"") ->  | R5: 2 | W5: =IF(V5>V4,R5,"") ->  | AB5: Test Abscence trou | AE5: =IF(AE3,IF(C42>D41,FALSE,TRUE),"") ->  | AF5: =IF(AF3,IF(C43>D42,FALSE,TRUE),"") ->  | AH5: =AH4+1 -> 2 | AI5: 0 | AJ5: =$E$41*(AH5/60)^-$F$41*AH5/60*AI5 -> 0 | AK5: 0 | AL5: =$E$42*((AH5/60)^-$F$42*AH5/60*AK5) -> 0 | AM5: 0 | AN5: =$E$42*(AH5/60)^-$F$42*AH5/60*AM5 -> 0 | AO5: 0 | AP5: 0 | AQ5: =$E$26/1000*AH5*60 ->  | AW5: =IF(AU3=$C$41,TRUE,FALSE) -> 
M6: Code | R6: 3 | AH6: 3 | AI6: 0 | AJ6: 0 | AK6: 0 | AL6: 0 | AM6: 0 | AN6: 0 | AO6: 0 | AP6: 0 | AW6: Test QF5 - dépassement calcul
A7: Description synthétique du stockage | R7: 4 | AB7: Verification données : 0 pas de données, 1 données Ok, 2 décroissante, 3 trou, 4 décroissant et trou) | AD7: =_xlfn.IFS(AD3=FALSE,0,AD4=TRUE,1,AD4=FALSE,2) -> 0 | AE7: =_xlfn.IFS(AE3=FALSE,0,AND(AE4=TRUE,AE5=TRUE),1,AND(AE4=FALSE,AE5=FALSE),4,AE4=FALSE,2,AE5=FALSE,3) -> 0 | AF7: =_xlfn.IFS(AF3=FALSE,0,AND(AF4=TRUE,AF5=TRUE),1,AND(AF4=FALSE,AF5=FALSE),4,AF4=FALSE,2,AF5=FALSE,3) -> 0 | AH7: 4 | AI7: 0 | AJ7: 0 | AK7: 0 | AL7: 0 | AM7: 0 | AN7: 0 | AO7: 0 | AP7: 0 | AW7: =IF(AH5762=AU3,TRUE, FALSE) -> 
R8: 5 | AH8: 5 | AI8: 0 | AJ8: 0 | AK8: 0 | AL8: 0 | AM8: 0 | AN8: 0 | AO8: 0 | AP8: 0
L9: Message | R9: 6 | AB9: QF3 Validité pluie | AD9: =IF(AND(OR(AD7=1,AD7=0),OR(AE7=1,AE7=0),OR(AF7=1,AF7=0)),TRUE,FALSE) -> TRUE | AH9: 6 | AI9: 0 | AJ9: 0 | AK9: 0 | AL9: 0 | AM9: 0 | AN9: 0 | AO9: 0 | AP9: 0
L10: Zone pluviométrique non renseignée | N10: =Projet!C1 -> FALSE | R10: 7 | AH10: 7 | AI10: 0 | AJ10: 0 | AK10: 0 | AL10: 0 | AM10: 0 | AN10: 0 | AO10: 0 | AP10: 0
L11: Données incomplétes | N11: =N1 -> FALSE | R11: 8 | AH11: 8 | AI11: 0 | AJ11: 0 | AK11: 0 | AL11: 0 | AM11: 0 | AN11: 0 | AO11: 0 | AP11: 0
L12: Débit de fuite par infiltration mais données infiltration non renseignées | N12: =N4 -> FALSE | R12: 9 | AH12: 9 | AI12: 0 | AJ12: 0 | AK12: 0 | AL12: 0 | AM12: 0 | AN12: 0 | AO12: 0 | AP12: 0
L13: Durée de remplissage > 2 h, données de pluies non valides. | N13: =Z3 ->  | R13: 10 | AH13: 10 | AI13: 0 | AJ13: 0 | AK13: 0 | AL13: 0 | AM13: 0 | AN13: 0 | AO13: 0 | AP13: 0
R14: 11 | AH14: 11 | AI14: 0 | AJ14: 0 | AK14: 0 | AL14: 0 | AM14: 0 | AN14: 0 | AO14: 0 | AP14: 0
A15: Données générales | R15: 12 | AH15: 12 | AI15: 0 | AJ15: 0 | AK15: 0 | AL15: 0 | AM15: 0 | AN15: 0 | AO15: 0 | AP15: 0
R16: 13 | AH16: 13 | AI16: 0 | AJ16: 0 | AK16: 0 | AL16: 0 | AM16: 0 | AN16: 0 | AO16: 0 | AP16: 0
B17: Surface (m²) | R17: 14 | AB17: Test données présentes et complètes | AD17: =AND(F37<>"",C41<>"",D41<>"",E41<>"",F41<>"") -> FALSE | AE17: =AND(AF2,AF3) -> FALSE | AH17: 14 | AI17: 0 | AJ17: 0 | AK17: 0 | AL17: 0 | AM17: 0 | AN17: 0 | AO17: 0 | AP17: 0
B18: Coefficient d'écoulement (ou ruissellement) | R18: 15 | AH18: 15 | AI18: 0 | AJ18: 0 | AK18: 0 | AL18: 0 | AM18: 0 | AN18: 0 | AO18: 0 | AP18: 0
B19: Période de retour dimensionnement (année) | R19: 16 | AH19: 16 | AI19: 0 | AJ19: 0 | AK19: 0 | AL19: 0 | AM19: 0 | AN19: 0 | AO19: 0 | AP19: 0
R20: 17 | AH20: 17 | AI20: 0 | AJ20: 0 | AK20: 0 | AL20: 0 | AM20: 0 | AN20: 0 | AO20: 0 | AP20: 0
R21: 18 | AH21: 18 | AI21: 0 | AJ21: 0 | AK21: 0 | AL21: 0 | AM21: 0 | AN21: 0 | AO21: 0 | AP21: 0
A22: Données débit de fuite | R22: 19 | AH22: 19 | AI22: 0 | AJ22: 0 | AK22: 0 | AL22: 0 | AM22: 0 | AN22: 0 | AO22: 0 | AP22: 0
G23: Si infiltration : | R23: 20 | AH23: 20 | AI23: 0 | AJ23: 0 | AK23: 0 | AL23: 0 | AM23: 0 | AN23: 0 | AO23: 0 | AP23: 0
A24: Débit fuite exutoire surface libre (l/s) | G24: Surface infiltration (m²) | R24: 21 | AH24: 21 | AI24: 0 | AJ24: 0 | AK24: 0 | AL24: 0 | AM24: 0 | AN24: 0 | AO24: 0 | AP24: 0
A25: Débit fuite infiltré (l/s) | G25: Perméabilité (mm/h) | R25: 22 | AH25: 22 | AI25: 0 | AJ25: 0 | AK25: 0 | AL25: 0 | AM25: 0 | AN25: 0 | AO25: 0 | AP25: 0
A26: Total débit de fuite (l/s) | E26: =IF(OR(E24<>"",E25<>""),E24+E25,"") ->  | G26: Débit infiltré calc. l/s | J26: =IF(N3,J24*J25/3600,"") ->  | R26: 23 | AH26: 23 | AI26: 0 | AJ26: 0 | AK26: 0 | AL26: 0 | AM26: 0 | AN26: 0 | AO26: 0 | AP26: 0
R27: 24 | AH27: 24 | AI27: 0 | AJ27: 0 | AK27: 0 | AL27: 0 | AM27: 0 | AN27: 0 | AO27: 0 | AP27: 0
R28: 25 | AH28: 25 | AI28: 0 | AJ28: 0 | AK28: 0 | AL28: 0 | AM28: 0 | AN28: 0 | AO28: 0 | AP28: 0
A29: Résultats avec données pluie Guide 2012 | R29: 26 | AH29: 26 | AI29: 0 | AJ29: 0 | AK29: 0 | AL29: 0 | AM29: 0 | AN29: 0 | AO29: 0 | AP29: 0
R30: 27 | AH30: 27 | AI30: 0 | AJ30: 0 | AK30: 0 | AL30: 0 | AM30: 0 | AN30: 0 | AO30: 0 | AP30: 0
C31: Volume marnant à stocker (m3) | R31: 28 | W31: =IF(V31>V30,R31,"") ->  | AH31: 28 | AI31: 0 | AJ31: 0 | AK31: 0 | AL31: 0 | AM31: 0 | AN31: 0 | AO31: 0 | AP31: 0
C32: Temps remplissage max (mn) | R32: 29 | W32: =IF(V32>V31,R32,"") ->  | AH32: 29 | AI32: 0 | AJ32: 0 | AK32: 0 | AL32: 0 | AM32: 0 | AN32: 0 | AO32: 0 | AP32: 0
R33: 30 | AH33: 30 | AI33: 0 | AJ33: 0 | AK33: 0 | AL33: 0 | AM33: 0 | AN33: 0 | AO33: 0 | AP33: 0
R34: 31 | AH34: 31 | AI34: 0 | AJ34: 0 | AK34: 0 | AL34: 0 | AM34: 0 | AN34: 0 | AO34: 0 | AP34: 0
A35: Données de pluie optionnelles : Nécessaires si durée remplissage max. supérieure à 2 h | R35: 32 | U35: =$E$26/1000*R35*60 ->  | AH35: 32 | AI35: 0 | AJ35: 0 | AK35: 0 | AL35: 0 | AM35: 0 | AN35: 0 | AO35: 0 | AP35: 0
R36: 33 | S36: =$Q$3*(R36/60)^-0.33*R36/60 ->  | AH36: 33 | AI36: 0 | AJ36: 0 | AK36: 0 | AL36: 0 | AM36: 0 | AN36: 0 | AO36: 0 | AP36: 0
B37: Période de retour pluie (année) | R37: 34 | AH37: 34 | AI37: 0 | AJ37: 0 | AK37: 0 | AL37: 0 | AM37: 0 | AN37: 0 | AO37: 0 | AP37: 0
R38: 35 | AH38: 35 | AI38: 0 | AJ38: 0 | AK38: 0 | AL38: 0 | AM38: 0 | AN38: 0 | AO38: 0 | AP38: 0
C39: Durée de validité intervalle (mn) | E39: Avec : I (mm/heure)=a. t(heure)-b | R39: 36 | AH39: 36 | AI39: 0 | AJ39: 0 | AK39: 0 | AL39: 0 | AM39: 0 | AN39: 0 | AO39: 0 | AP39: 0
B40: Intervalle | C40: tmin | D40: tmax | E40: a | F40: b | R40: 37 | AH40: 37 | AI40: 0 | AJ40: 0 | AK40: 0 | AL40: 0 | AM40: 0 | AN40: 0 | AO40: 0 | AP40: 0
B41: 1 | R41: 38 | AH41: 38 | AI41: 0 | AJ41: 0 | AK41: 0 | AL41: 0 | AM41: 0 | AN41: 0 | AO41: 0 | AP41: 0
B42: 2 | R42: 39 | AH42: 39 | AI42: 0 | AJ42: 0 | AK42: 0 | AL42: 0 | AM42: 0 | AN42: 0 | AO42: 0 | AP42: 0
B43: 3 | R43: 40 | AH43: 40 | AI43: 0 | AJ43: 0 | AK43: 0 | AL43: 0 | AM43: 0 | AN43: 0 | AO43: 0 | AP43: 0
A44: Nota : Les données de pluie doivent couvrir le temps de remplissage maxi. | R44: 41 | AH44: 41 | AI44: 0 | AJ44: 0 | AK44: 0 | AL44: 0 | AM44: 0 | AN44: 0 | AO44: 0 | AP44: 0
A45: Au minimum, un intervalle est requis pour les calculs. | R45: 42 | AH45: 42 | AI45: 0 | AJ45: 0 | AK45: 0 | AL45: 0 | AM45: 0 | AN45: 0 | AO45: 0 | AP45: 0
A46: Les intervalles sont croissants. Ils peuvent se chevaucher mais ne peuvent présenter de discontinuités. | R46: 43 | AH46: 43 | AI46: 0 | AJ46: 0 | AK46: 0 | AL46: 0 | AM46: 0 | AN46: 0 | AO46: 0 | AP46: 0
R47: 44 | AH47: 44 | AI47: 0 | AJ47: 0 | AK47: 0 | AL47: 0 | AM47: 0 | AN47: 0 | AO47: 0 | AP47: 0
A48: Résultats avec données pluie Optionnelle | R48: 45 | AH48: 45 | AI48: 0 | AJ48: 0 | AK48: 0 | AL48: 0 | AM48: 0 | AN48: 0 | AO48: 0 | AP48: 0
R49: 46 | AH49: 46 | AI49: 0 | AJ49: 0 | AK49: 0 | AL49: 0 | AM49: 0 | AN49: 0 | AO49: 0 | AP49: 0
C50: Volume marnant à stocker (m3) | R50: 47 | AH50: 47 | AI50: 0 | AJ50: 0 | AK50: 0 | AL50: 0 | AM50: 0 | AN50: 0 | AO50: 0 | AP50: 0
C51: Temps remplissage max (mn) | R51: 48 | AH51: 48 | AI51: 0 | AJ51: 0 | AK51: 0 | AL51: 0 | AM51: 0 | AN51: 0 | AO51: 0 | AP51: 0
R52: 49 | AH52: 49 | AI52: 0 | AJ52: 0 | AK52: 0 | AL52: 0 | AM52: 0 | AN52: 0 | AO52: 0 | AP52: 0
A53: =CONCATENATE("Version ",(MAX('Liste versions'!$B$4:$B$30))," de la feuille Excel du ",DAY(MAX('Liste versions'!$A$4:$A$30)),"/",MONTH(MAX('Liste versions'!$A$4:$A$30)),"/",YEAR(MAX('Liste versions'!$A$4:$A$30))," - hydro-expertise.com") -> Version 5 de la feuille Excel du 21/4/2025 - hydro-expertise.com | I53: =Introduction!$H$43 -> DEAL Réunion | R53: 50 | AH53: 50 | AI53: 0 | AJ53: 0 | AK53: 0 | AL53: 0 | AM53: 0 | AN53: 0 | AO53: 0 | AP53: 0
R54: 51 | AH54: 51 | AI54: 0 | AJ54: 0 | AK54: 0 | AL54: 0 | AM54: 0 | AN54: 0 | AO54: 0 | AP54: 0
R55: 52 | AH55: 52 | AI55: 0 | AJ55: 0 | AK55: 0 | AL55: 0 | AM55: 0 | AN55: 0 | AO55: 0 | AP55: 0
R56: 53 | AH56: 53 | AI56: 0 | AJ56: 0 | AK56: 0 | AL56: 0 | AM56: 0 | AN56: 0 | AO56: 0 | AP56: 0
R57: 54 | AH57: 54 | AI57: 0 | AJ57: 0 | AK57: 0 | AL57: 0 | AM57: 0 | AN57: 0 | AO57: 0 | AP57: 0
R58: 55 | AH58: 55 | AI58: 0 | AJ58: 0 | AK58: 0 | AL58: 0 | AM58: 0 | AN58: 0 | AO58: 0 | AP58: 0
R59: 56 | AH59: 56 | AI59: 0 | AJ59: 0 | AK59: 0 | AL59: 0 | AM59: 0 | AN59: 0 | AO59: 0 | AP59: 0
R60: 57 | AH60: 57 | AI60: 0 | AJ60: 0 | AK60: 0 | AL60: 0 | AM60: 0 | AN60: 0 | AO60: 0 | AP60: 0
R61: 58 | AH61: 58 | AI61: 0 | AJ61: 0 | AK61: 0 | AL61: 0 | AM61: 0 | AN61: 0 | AO61: 0 | AP61: 0
R62: 59 | AH62: 59 | AI62: 0 | AJ62: 0 | AK62: 0 | AL62: 0 | AM62: 0 | AN62: 0 | AO62: 0 | AP62: 0
R63: 60 | AH63: 60 | AI63: 0 | AJ63: 0 | AK63: 0 | AL63: 0 | AM63: 0 | AN63: 0 | AO63: 0 | AP63: 0
R64: 61 | AH64: 61 | AI64: 0 | AJ64: 0 | AK64: 0 | AL64: 0 | AM64: 0 | AN64: 0 | AO64: 0 | AP64: 0
R65: 62 | AH65: 62 | AI65: 0 | AJ65: 0 | AK65: 0 | AL65: 0 | AM65: 0 | AN65: 0 | AO65: 0 | AP65: 0
R66: 63 | AH66: 63 | AI66: 0 | AJ66: 0 | AK66: 0 | AL66: 0 | AM66: 0 | AN66: 0 | AO66: 0 | AP66: 0
R67: 64 | U67: =$E$26/1000*R67*60 ->  | AH67: 64 | AI67: 0 | AJ67: 0 | AK67: =IF(AI67=1,0,IF(AND(AH67>$C$42,AH67<=$D$42),1,0)) -> 0 | AL67: 0 | AM67: 0 | AN67: 0 | AO67: 0 | AP67: 0
R68: 65 | S68: =$Q$3*(R68/60)^-0.33*R68/60 ->  | T68: =S68*$H$17*$H$18/1000 ->  | V68: =T68-U68 ->  | AH68: 65 | AI68: =IF(AND(AH68>$C$41,AH68<=$D$41),1,0) -> 0 | AJ68: =$E$41*(AH68/60)^-$F$41*AH68/60*AI68 -> 0 | AK68: 0 | AL68: 0 | AM68: =IF(OR(AI68=1,AK68=1),0,IF(AND(AH68>$C$43,AH68<=$D$43),1,0)) -> 0 | AN68: 0 | AO68: =AJ68+AL68+AN68 -> 0 | AP68: =AO68*$H$17*$H$18/1000 -> 0 | AR68: =AP68-AQ68 ->  | AS68: =IF(AR68=MAX($AR$3:$AR$5762),AH68,"") -> 
R69: 66 | W69: =IF(V69>V68,R69,"") ->  | AH69: =AH68+1 -> 66 | AI69: 0 | AJ69: 0 | AK69: 0 | AL69: =$E$42*((AH69/60)^-$F$42*AH69/60*AK69) -> 0 | AM69: 0 | AN69: =$E$42*(AH69/60)^-$F$42*AH69/60*AM69 -> 0 | AO69: 0 | AP69: 0 | AQ69: =$E$26/1000*AH69*60 -> 
R70: 67 | AH70: 67 | AI70: 0 | AJ70: 0 | AK70: 0 | AL70: 0 | AM70: 0 | AN70: 0 | AO70: 0 | AP70: 0
R71: 68 | AH71: 68 | AI71: 0 | AJ71: 0 | AK71: 0 | AL71: 0 | AM71: 0 | AN71: 0 | AO71: 0 | AP71: 0
R72: 69 | AH72: 69 | AI72: 0 | AJ72: 0 | AK72: 0 | AL72: 0 | AM72: 0 | AN72: 0 | AO72: 0 | AP72: 0
R73: 70 | AH73: 70 | AI73: 0 | AJ73: 0 | AK73: 0 | AL73: 0 | AM73: 0 | AN73: 0 | AO73: 0 | AP73: 0
R74: 71 | AH74: 71 | AI74: 0 | AJ74: 0 | AK74: 0 | AL74: 0 | AM74: 0 | AN74: 0 | AO74: 0 | AP74: 0
R75: 72 | AH75: 72 | AI75: 0 | AJ75: 0 | AK75: 0 | AL75: 0 | AM75: 0 | AN75: 0 | AO75: 0 | AP75: 0
R76: 73 | AH76: 73 | AI76: 0 | AJ76: 0 | AK76: 0 | AL76: 0 | AM76: 0 | AN76: 0 | AO76: 0 | AP76: 0
R77: 74 | AH77: 74 | AI77: 0 | AJ77: 0 | AK77: 0 | AL77: 0 | AM77: 0 | AN77: 0 | AO77: 0 | AP77: 0
R78: 75 | AH78: 75 | AI78: 0 | AJ78: 0 | AK78: 0 | AL78: 0 | AM78: 0 | AN78: 0 | AO78: 0 | AP78: 0
R79: 76 | AH79: 76 | AI79: 0 | AJ79: 0 | AK79: 0 | AL79: 0 | AM79: 0 | AN79: 0 | AO79: 0 | AP79: 0
R80: 77 | AH80: 77 | AI80: 0 | AJ80: 0 | AK80: 0 | AL80: 0 | AM80: 0 | AN80: 0 | AO80: 0 | AP80: 0
R81: 78 | AH81: 78 | AI81: 0 | AJ81: 0 | AK81: 0 | AL81: 0 | AM81: 0 | AN81: 0 | AO81: 0 | AP81: 0
R82: 79 | AH82: 79 | AI82: 0 | AJ82: 0 | AK82: 0 | AL82: 0 | AM82: 0 | AN82: 0 | AO82: 0 | AP82: 0
R83: 80 | AH83: 80 | AI83: 0 | AJ83: 0 | AK83: 0 | AL83: 0 | AM83: 0 | AN83: 0 | AO83: 0 | AP83: 0
R84: 81 | AH84: 81 | AI84: 0 | AJ84: 0 | AK84: 0 | AL84: 0 | AM84: 0 | AN84: 0 | AO84: 0 | AP84: 0
R85: 82 | AH85: 82 | AI85: 0 | AJ85: 0 | AK85: 0 | AL85: 0 | AM85: 0 | AN85: 0 | AO85: 0 | AP85: 0
R86: 83 | AH86: 83 | AI86: 0 | AJ86: 0 | AK86: 0 | AL86: 0 | AM86: 0 | AN86: 0 | AO86: 0 | AP86: 0
R87: 84 | AH87: 84 | AI87: 0 | AJ87: 0 | AK87: 0 | AL87: 0 | AM87: 0 | AN87: 0 | AO87: 0 | AP87: 0
R88: 85 | AH88: 85 | AI88: 0 | AJ88: 0 | AK88: 0 | AL88: 0 | AM88: 0 | AN88: 0 | AO88: 0 | AP88: 0
R89: 86 | AH89: 86 | AI89: 0 | AJ89: 0 | AK89: 0 | AL89: 0 | AM89: 0 | AN89: 0 | AO89: 0 | AP89: 0
R90: 87 | AH90: 87 | AI90: 0 | AJ90: 0 | AK90: 0 | AL90: 0 | AM90: 0 | AN90: 0 | AO90: 0 | AP90: 0
R91: 88 | AH91: 88 | AI91: 0 | AJ91: 0 | AK91: 0 | AL91: 0 | AM91: 0 | AN91: 0 | AO91: 0 | AP91: 0
R92: 89 | AH92: 89 | AI92: 0 | AJ92: 0 | AK92: 0 | AL92: 0 | AM92: 0 | AN92: 0 | AO92: 0 | AP92: 0
R93: 90 | AH93: 90 | AI93: 0 | AJ93: 0 | AK93: 0 | AL93: 0 | AM93: 0 | AN93: 0 | AO93: 0 | AP93: 0
R94: 91 | AH94: 91 | AI94: 0 | AJ94: 0 | AK94: 0 | AL94: 0 | AM94: 0 | AN94: 0 | AO94: 0 | AP94: 0
R95: 92 | AH95: 92 | AI95: 0 | AJ95: 0 | AK95: 0 | AL95: 0 | AM95: 0 | AN95: 0 | AO95: 0 | AP95: 0
R96: 93 | AH96: 93 | AI96: 0 | AJ96: 0 | AK96: 0 | AL96: 0 | AM96: 0 | AN96: 0 | AO96: 0 | AP96: 0
R97: 94 | AH97: 94 | AI97: 0 | AJ97: 0 | AK97: 0 | AL97: 0 | AM97: 0 | AN97: 0 | AO97: 0 | AP97: 0
R98: 95 | AH98: 95 | AI98: 0 | AJ98: 0 | AK98: 0 | AL98: 0 | AM98: 0 | AN98: 0 | AO98: 0 | AP98: 0
R99: 96 | U99: =$E$26/1000*R99*60 ->  | AH99: 96 | AI99: 0 | AJ99: 0 | AK99: 0 | AL99: 0 | AM99: 0 | AN99: 0 | AO99: 0 | AP99: 0
R100: 97 | S100: =$Q$3*(R100/60)^-0.33*R100/60 ->  | AH100: 97 | AI100: 0 | AJ100: 0 | AK100: 0 | AL100: 0 | AM100: 0 | AN100: 0 | AO100: 0 | AP100: 0
R101: 98 | AH101: 98 | AI101: 0 | AJ101: 0 | AK101: 0 | AL101: 0 | AM101: 0 | AN101: 0 | AO101: 0 | AP101: 0
R102: 99 | AH102: 99 | AI102: 0 | AJ102: 0 | AK102: 0 | AL102: 0 | AM102: 0 | AN102: 0 | AO102: 0 | AP102: 0
R103: 100 | AH103: 100 | AI103: 0 | AJ103: 0 | AK103: 0 | AL103: 0 | AM103: 0 | AN103: 0 | AO103: 0 | AP103: 0
R104: 101 | AH104: 101 | AI104: 0 | AJ104: 0 | AK104: 0 | AL104: 0 | AM104: 0 | AN104: 0 | AO104: 0 | AP104: 0
R105: 102 | AH105: 102 | AI105: 0 | AJ105: 0 | AK105: 0 | AL105: 0 | AM105: 0 | AN105: 0 | AO105: 0 | AP105: 0
R106: 103 | AH106: 103 | AI106: 0 | AJ106: 0 | AK106: 0 | AL106: 0 | AM106: 0 | AN106: 0 | AO106: 0 | AP106: 0
R107: 104 | AH107: 104 | AI107: 0 | AJ107: 0 | AK107: 0 | AL107: 0 | AM107: 0 | AN107: 0 | AO107: 0 | AP107: 0
R108: 105 | AH108: 105 | AI108: 0 | AJ108: 0 | AK108: 0 | AL108: 0 | AM108: 0 | AN108: 0 | AO108: 0 | AP108: 0
R109: 106 | AH109: 106 | AI109: 0 | AJ109: 0 | AK109: 0 | AL109: 0 | AM109: 0 | AN109: 0 | AO109: 0 | AP109: 0
R110: 107 | AH110: 107 | AI110: 0 | AJ110: 0 | AK110: 0 | AL110: 0 | AM110: 0 | AN110: 0 | AO110: 0 | AP110: 0
R111: 108 | AH111: 108 | AI111: 0 | AJ111: 0 | AK111: 0 | AL111: 0 | AM111: 0 | AN111: 0 | AO111: 0 | AP111: 0
R112: 109 | AH112: 109 | AI112: 0 | AJ112: 0 | AK112: 0 | AL112: 0 | AM112: 0 | AN112: 0 | AO112: 0 | AP112: 0
R113: 110 | AH113: 110 | AI113: 0 | AJ113: 0 | AK113: 0 | AL113: 0 | AM113: 0 | AN113: 0 | AO113: 0 | AP113: 0
R114: 111 | AH114: 111 | AI114: 0 | AJ114: 0 | AK114: 0 | AL114: 0 | AM114: 0 | AN114: 0 | AO114: 0 | AP114: 0
R115: 112 | AH115: 112 | AI115: 0 | AJ115: 0 | AK115: 0 | AL115: 0 | AM115: 0 | AN115: 0 | AO115: 0 | AP115: 0
R116: 113 | AH116: 113 | AI116: 0 | AJ116: 0 | AK116: 0 | AL116: 0 | AM116: 0 | AN116: 0 | AO116: 0 | AP116: 0
R117: 114 | AH117: 114 | AI117: 0 | AJ117: 0 | AK117: 0 | AL117: 0 | AM117: 0 | AN117: 0 | AO117: 0 | AP117: 0
R118: 115 | AH118: 115 | AI118: 0 | AJ118: 0 | AK118: 0 | AL118: 0 | AM118: 0 | AN118: 0 | AO118: 0 | AP118: 0
R119: 116 | AH119: 116 | AI119: 0 | AJ119: 0 | AK119: 0 | AL119: 0 | AM119: 0 | AN119: 0 | AO119: 0 | AP119: 0
R120: 117 | AH120: 117 | AI120: 0 | AJ120: 0 | AK120: 0 | AL120: 0 | AM120: 0 | AN120: 0 | AO120: 0 | AP120: 0
R121: 118 | AH121: 118 | AI121: 0 | AJ121: 0 | AK121: 0 | AL121: 0 | AM121: 0 | AN121: 0 | AO121: 0 | AP121: 0
R122: 119 | AH122: 119 | AI122: 0 | AJ122: 0 | AK122: 0 | AL122: 0 | AM122: 0 | AN122: 0 | AO122: 0 | AP122: 0
R123: 120 | AH123: 120 | AI123: 0 | AJ123: 0 | AK123: 0 | AL123: 0 | AM123: 0 | AN123: 0 | AO123: 0 | AP123: 0
R124: 121 | V124: =T124-U124 ->  | W124: =IF(V124>V123,R124,"") ->  | AH124: 121 | AI124: 0 | AJ124: 0 | AK124: 0 | AL124: 0 | AM124: 0 | AN124: 0 | AO124: 0 | AP124: 0
AH125: 122 | AI125: 0 | AJ125: 0 | AK125: 0 | AL125: 0 | AM125: 0 | AN125: 0 | AO125: 0 | AP125: 0
AH126: 123 | AI126: 0 | AJ126: 0 | AK126: 0 | AL126: 0 | AM126: 0 | AN126: 0 | AO126: 0 | AP126: 0
AH127: 124 | AI127: 0 | AJ127: 0 | AK127: 0 | AL127: 0 | AM127: 0 | AN127: 0 | AO127: 0 | AP127: 0
AH128: 125 | AI128: 0 | AJ128: 0 | AK128: 0 | AL128: 0 | AM128: 0 | AN128: 0 | AO128: 0 | AP128: 0
AH129: 126 | AI129: 0 | AJ129: 0 | AK129: 0 | AL129: 0 | AM129: 0 | AN129: 0 | AO129: 0 | AP129: 0
AH130: 127 | AI130: 0 | AJ130: 0 | AK130: 0 | AL130: 0 | AM130: 0 | AN130: 0 | AO130: 0 | AP130: 0
AH131: 128 | AI131: 0 | AJ131: 0 | AK131: =IF(AI131=1,0,IF(AND(AH131>$C$42,AH131<=$D$42),1,0)) -> 0 | AL131: 0 | AM131: 0 | AN131: 0 | AO131: 0 | AP131: 0
AH132: 129 | AI132: =IF(AND(AH132>$C$41,AH132<=$D$41),1,0) -> 0 | AJ132: =$E$41*(AH132/60)^-$F$41*AH132/60*AI132 -> 0 | AK132: 0 | AL132: 0 | AM132: =IF(OR(AI132=1,AK132=1),0,IF(AND(AH132>$C$43,AH132<=$D$43),1,0)) -> 0 | AN132: 0 | AO132: =AJ132+AL132+AN132 -> 0 | AP132: =AO132*$H$17*$H$18/1000 -> 0 | AR132: =AP132-AQ132 ->  | AS132: =IF(AR132=MAX($AR$3:$AR$5762),AH132,"") -> 
AH133: =AH132+1 -> 130 | AI133: 0 | AJ133: 0 | AK133: 0 | AL133: =$E$42*((AH133/60)^-$F$42*AH133/60*AK133) -> 0 | AM133: 0 | AN133: =$E$42*(AH133/60)^-$F$42*AH133/60*AM133 -> 0 | AO133: 0 | AP133: 0 | AQ133: =$E$26/1000*AH133*60 -> 
AH134: 131 | AI134: 0 | AJ134: 0 | AK134: 0 | AL134: 0 | AM134: 0 | AN134: 0 | AO134: 0 | AP134: 0
AH135: 132 | AI135: 0 | AJ135: 0 | AK135: 0 | AL135: 0 | AM135: 0 | AN135: 0 | AO135: 0 | AP135: 0
AH136: 133 | AI136: 0 | AJ136: 0 | AK136: 0 | AL136: 0 | AM136: 0 | AN136: 0 | AO136: 0 | AP136: 0
AH137: 134 | AI137: 0 | AJ137: 0 | AK137: 0 | AL137: 0 | AM137: 0 | AN137: 0 | AO137: 0 | AP137: 0
AH138: 135 | AI138: 0 | AJ138: 0 | AK138: 0 | AL138: 0 | AM138: 0 | AN138: 0 | AO138: 0 | AP138: 0
AH139: 136 | AI139: 0 | AJ139: 0 | AK139: 0 | AL139: 0 | AM139: 0 | AN139: 0 | AO139: 0 | AP139: 0
AH140: 137 | AI140: 0 | AJ140: 0 | AK140: 0 | AL140: 0 | AM140: 0 | AN140: 0 | AO140: 0 | AP140: 0
AH141: 138 | AI141: 0 | AJ141: 0 | AK141: 0 | AL141: 0 | AM141: 0 | AN141: 0 | AO141: 0 | AP141: 0
AH142: 139 | AI142: 0 | AJ142: 0 | AK142: 0 | AL142: 0 | AM142: 0 | AN142: 0 | AO142: 0 | AP142: 0
AH143: 140 | AI143: 0 | AJ143: 0 | AK143: 0 | AL143: 0 | AM143: 0 | AN143: 0 | AO143: 0 | AP143: 0
AH144: 141 | AI144: 0 | AJ144: 0 | AK144: 0 | AL144: 0 | AM144: 0 | AN144: 0 | AO144: 0 | AP144: 0
AH145: 142 | AI145: 0 | AJ145: 0 | AK145: 0 | AL145: 0 | AM145: 0 | AN145: 0 | AO145: 0 | AP145: 0
AH146: 143 | AI146: 0 | AJ146: 0 | AK146: 0 | AL146: 0 | AM146: 0 | AN146: 0 | AO146: 0 | AP146: 0
AH147: 144 | AI147: 0 | AJ147: 0 | AK147: 0 | AL147: 0 | AM147: 0 | AN147: 0 | AO147: 0 | AP147: 0
AH148: 145 | AI148: 0 | AJ148: 0 | AK148: 0 | AL148: 0 | AM148: 0 | AN148: 0 | AO148: 0 | AP148: 0
AH149: 146 | AI149: 0 | AJ149: 0 | AK149: 0 | AL149: 0 | AM149: 0 | AN149: 0 | AO149: 0 | AP149: 0
AH150: 147 | AI150: 0 | AJ150: 0 | AK150: 0 | AL150: 0 | AM150: 0 | AN150: 0 | AO150: 0 | AP150: 0
AH151: 148 | AI151: 0 | AJ151: 0 | AK151: 0 | AL151: 0 | AM151: 0 | AN151: 0 | AO151: 0 | AP151: 0
AH152: 149 | AI152: 0 | AJ152: 0 | AK152: 0 | AL152: 0 | AM152: 0 | AN152: 0 | AO152: 0 | AP152: 0
AH153: 150 | AI153: 0 | AJ153: 0 | AK153: 0 | AL153: 0 | AM153: 0 | AN153: 0 | AO153: 0 | AP153: 0
AH154: 151 | AI154: 0 | AJ154: 0 | AK154: 0 | AL154: 0 | AM154: 0 | AN154: 0 | AO154: 0 | AP154: 0
AH155: 152 | AI155: 0 | AJ155: 0 | AK155: 0 | AL155: 0 | AM155: 0 | AN155: 0 | AO155: 0 | AP155: 0
AH156: 153 | AI156: 0 | AJ156: 0 | AK156: 0 | AL156: 0 | AM156: 0 | AN156: 0 | AO156: 0 | AP156: 0
AH157: 154 | AI157: 0 | AJ157: 0 | AK157: 0 | AL157: 0 | AM157: 0 | AN157: 0 | AO157: 0 | AP157: 0
AH158: 155 | AI158: 0 | AJ158: 0 | AK158: 0 | AL158: 0 | AM158: 0 | AN158: 0 | AO158: 0 | AP158: 0
AH159: 156 | AI159: 0 | AJ159: 0 | AK159: 0 | AL159: 0 | AM159: 0 | AN159: 0 | AO159: 0 | AP159: 0
AH160: 157 | AI160: 0 | AJ160: 0 | AK160: 0 | AL160: 0 | AM160: 0 | AN160: 0 | AO160: 0 | AP160: 0
AH161: 158 | AI161: 0 | AJ161: 0 | AK161: 0 | AL161: 0 | AM161: 0 | AN161: 0 | AO161: 0 | AP161: 0
AH162: 159 | AI162: 0 | AJ162: 0 | AK162: 0 | AL162: 0 | AM162: 0 | AN162: 0 | AO162: 0 | AP162: 0
AH163: 160 | AI163: 0 | AJ163: 0 | AK163: 0 | AL163: 0 | AM163: 0 | AN163: 0 | AO163: 0 | AP163: 0
AH164: 161 | AI164: 0 | AJ164: 0 | AK164: 0 | AL164: 0 | AM164: 0 | AN164: 0 | AO164: 0 | AP164: 0
AH165: 162 | AI165: 0 | AJ165: 0 | AK165: 0 | AL165: 0 | AM165: 0 | AN165: 0 | AO165: 0 | AP165: 0
AH166: 163 | AI166: 0 | AJ166: 0 | AK166: 0 | AL166: 0 | AM166: 0 | AN166: 0 | AO166: 0 | AP166: 0
AH167: 164 | AI167: 0 | AJ167: 0 | AK167: 0 | AL167: 0 | AM167: 0 | AN167: 0 | AO167: 0 | AP167: 0
AH168: 165 | AI168: 0 | AJ168: 0 | AK168: 0 | AL168: 0 | AM168: 0 | AN168: 0 | AO168: 0 | AP168: 0
AH169: 166 | AI169: 0 | AJ169: 0 | AK169: 0 | AL169: 0 | AM169: 0 | AN169: 0 | AO169: 0 | AP169: 0
AH170: 167 | AI170: 0 | AJ170: 0 | AK170: 0 | AL170: 0 | AM170: 0 | AN170: 0 | AO170: 0 | AP170: 0
AH171: 168 | AI171: 0 | AJ171: 0 | AK171: 0 | AL171: 0 | AM171: 0 | AN171: 0 | AO171: 0 | AP171: 0
AH172: 169 | AI172: 0 | AJ172: 0 | AK172: 0 | AL172: 0 | AM172: 0 | AN172: 0 | AO172: 0 | AP172: 0
AH173: 170 | AI173: 0 | AJ173: 0 | AK173: 0 | AL173: 0 | AM173: 0 | AN173: 0 | AO173: 0 | AP173: 0
AH174: 171 | AI174: 0 | AJ174: 0 | AK174: 0 | AL174: 0 | AM174: 0 | AN174: 0 | AO174: 0 | AP174: 0
AH175: 172 | AI175: 0 | AJ175: 0 | AK175: 0 | AL175: 0 | AM175: 0 | AN175: 0 | AO175: 0 | AP175: 0
AH176: 173 | AI176: 0 | AJ176: 0 | AK176: 0 | AL176: 0 | AM176: 0 | AN176: 0 | AO176: 0 | AP176: 0
AH177: 174 | AI177: 0 | AJ177: 0 | AK177: 0 | AL177: 0 | AM177: 0 | AN177: 0 | AO177: 0 | AP177: 0
AH178: 175 | AI178: 0 | AJ178: 0 | AK178: 0 | AL178: 0 | AM178: 0 | AN178: 0 | AO178: 0 | AP178: 0
AH179: 176 | AI179: 0 | AJ179: 0 | AK179: 0 | AL179: 0 | AM179: 0 | AN179: 0 | AO179: 0 | AP179: 0
AH180: 177 | AI180: 0 | AJ180: 0 | AK180: 0 | AL180: 0 | AM180: 0 | AN180: 0 | AO180: 0 | AP180: 0
AH181: 178 | AI181: 0 | AJ181: 0 | AK181: 0 | AL181: 0 | AM181: 0 | AN181: 0 | AO181: 0 | AP181: 0
AH182: 179 | AI182: 0 | AJ182: 0 | AK182: 0 | AL182: 0 | AM182: 0 | AN182: 0 | AO182: 0 | AP182: 0
AH183: 180 | AI183: 0 | AJ183: 0 | AK183: 0 | AL183: 0 | AM183: 0 | AN183: 0 | AO183: 0 | AP183: 0
AH184: 181 | AI184: 0 | AJ184: 0 | AK184: 0 | AL184: 0 | AM184: 0 | AN184: 0 | AO184: 0 | AP184: 0
AH185: 182 | AI185: 0 | AJ185: 0 | AK185: 0 | AL185: 0 | AM185: 0 | AN185: 0 | AO185: 0 | AP185: 0
AH186: 183 | AI186: 0 | AJ186: 0 | AK186: 0 | AL186: 0 | AM186: 0 | AN186: 0 | AO186: 0 | AP186: 0
AH187: 184 | AI187: 0 | AJ187: 0 | AK187: 0 | AL187: 0 | AM187: 0 | AN187: 0 | AO187: 0 | AP187: 0
AH188: 185 | AI188: 0 | AJ188: 0 | AK188: 0 | AL188: 0 | AM188: 0 | AN188: 0 | AO188: 0 | AP188: 0
AH189: 186 | AI189: 0 | AJ189: 0 | AK189: 0 | AL189: 0 | AM189: 0 | AN189: 0 | AO189: 0 | AP189: 0
AH190: 187 | AI190: 0 | AJ190: 0 | AK190: 0 | AL190: 0 | AM190: 0 | AN190: 0 | AO190: 0 | AP190: 0
AH191: 188 | AI191: 0 | AJ191: 0 | AK191: 0 | AL191: 0 | AM191: 0 | AN191: 0 | AO191: 0 | AP191: 0
AH192: 189 | AI192: 0 | AJ192: 0 | AK192: 0 | AL192: 0 | AM192: 0 | AN192: 0 | AO192: 0 | AP192: 0
AH193: 190 | AI193: 0 | AJ193: 0 | AK193: 0 | AL193: 0 | AM193: 0 | AN193: 0 | AO193: 0 | AP193: 0
AH194: 191 | AI194: 0 | AJ194: 0 | AK194: 0 | AL194: 0 | AM194: 0 | AN194: 0 | AO194: 0 | AP194: 0
AH195: 192 | AI195: 0 | AJ195: 0 | AK195: =IF(AI195=1,0,IF(AND(AH195>$C$42,AH195<=$D$42),1,0)) -> 0 | AL195: 0 | AM195: 0 | AN195: 0 | AO195: 0 | AP195: 0
AH196: 193 | AI196: =IF(AND(AH196>$C$41,AH196<=$D$41),1,0) -> 0 | AJ196: =$E$41*(AH196/60)^-$F$41*AH196/60*AI196 -> 0 | AK196: 0 | AL196: 0 | AM196: =IF(OR(AI196=1,AK196=1),0,IF(AND(AH196>$C$43,AH196<=$D$43),1,0)) -> 0 | AN196: 0 | AO196: =AJ196+AL196+AN196 -> 0 | AP196: =AO196*$H$17*$H$18/1000 -> 0 | AR196: =AP196-AQ196 ->  | AS196: =IF(AR196=MAX($AR$3:$AR$5762),AH196,"") -> 
AH197: =AH196+1 -> 194 | AI197: 0 | AJ197: 0 | AK197: 0 | AL197: =$E$42*((AH197/60)^-$F$42*AH197/60*AK197) -> 0 | AM197: 0 | AN197: =$E$42*(AH197/60)^-$F$42*AH197/60*AM197 -> 0 | AO197: 0 | AP197: 0 | AQ197: =$E$26/1000*AH197*60 -> 
AH198: 195 | AI198: 0 | AJ198: 0 | AK198: 0 | AL198: 0 | AM198: 0 | AN198: 0 | AO198: 0 | AP198: 0
AH199: 196 | AI199: 0 | AJ199: 0 | AK199: 0 | AL199: 0 | AM199: 0 | AN199: 0 | AO199: 0 | AP199: 0
AH200: 197 | AI200: 0 | AJ200: 0 | AK200: 0 | AL200: 0 | AM200: 0 | AN200: 0 | AO200: 0 | AP200: 0
... 925 more rows

Sheet Orifice_Qfixe (hidden)
A1: N° Fiche | L1: TestQR1 (données entrées) | M1: =IF(AND(B1<>"",D3<>"",D4<>"",H17<>"",H18<>"",H19<>""),TRUE,FALSE) -> FALSE
A2: Nom Projet | B2: =IF(Projet!C1=TRUE,Projet!C6,"") ->  | L2: TestQR2 (données entrées) | M2: =IF(AND(H17<>"",H18<>"",H19<>""),TRUE,FALSE) -> FALSE
A3: Nom du BV | L3: TestQR3 (données entrées) | M3: =IF(AND(H28<>"",H29<>"",H30<>"",H27<>""),TRUE,FALSE) -> FALSE
A4: Nom Orifice | D4: =IF(D3<>"",CONCATENATE("O_",D3),"") -> 
A5: Zone pluviométrique | C5: =IF(Projet!C1=TRUE,Projet!C7,"") -> 
A7: Description synthétique de la régulation
A15: Orifice circulaire
B17: Q : Débit de fuite maxi (l/s) | L17: Optimisation
B18: H : Hauteur d'eau maxi. / fil d'eau orifice (m) | L18: D | M18: 0.2478970972
B19: Coefficient de débit m | L19: Q objectif | M19: =H17/1000 -> 0
L20: Q optimisation | M20: =H19*3.1416*(M18/2)^2*SQRT(2*9.81*(H18-M18/2)) -> 
B21: D : Diamètre de l'orifice circulaire équivalent (cm) | L21: Ecart | M21: =M19-M20 -> 
B22: S : Surface de l'orifice (cm²)
A25: Orifice rectangulaire
B27: Q : Débit de fuite maxi (l/s) | L27: Optimisation
B28: H : Hauteur d'eau maxi. / fil d'eau orifice (m) | L28: L | M28: 0.2379738538
B29: Coefficient de débit m | L29: Q objectif | M29: =H27/1000 -> 0
B30: ho : hauteur de l'orifice (cm) | L30: Q optimisation | M30: =H29*(M28*H30/100)*SQRT(2*9.81*(H28-H30/100/2)) -> 0
L31: Ecart | M31: =M29-M30 -> 0
B32: lo : largeur de l'orifice (cm)
B33: Surface de l'orifice (cm²)
A47: =CONCATENATE("Version ",(MAX('Liste versions'!$B$4:$B$30))," de la feuille Excel du ",DAY(MAX('Liste versions'!$A$4:$A$30)),"/",MONTH(MAX('Liste versions'!$A$4:$A$30)),"/",YEAR(MAX('Liste versions'!$A$4:$A$30))," - hydro-expertise.com") -> Version 5 de la feuille Excel du 21/4/2025 - hydro-expertise.com | I47: =Introduction!$H$43 -> DEAL Réunion

Sheet Orifice_Qvar (hidden)
A1: N° Fiche | L1: Verif entrée données | V1: Interpolation volume 2 ans sur loi H-V bassin
A2: Nom Projet | B2: =IF(Projet!C1=TRUE,Projet!C6,"") ->  | X2: Intervalle | Y2: 0 | Z2: 1 | AA2: 2 | AB2: 3 | AC2: 4 | AD2: 5
A3: Nom du BV | L3: Test Données entrées | M3: =IF(AND(H14<>"",E17<>"",F17<>"",G17<>"",H17<>"",I17<>"",E18<>"",F18<>"",G18<>"",H18<>"",I18<>"",E21<>"",E22<>""),TRUE,FALSE) -> FALSE | V3: Données entrante | W3: =E18 -> 0 | X3: Données X | Y3: =D22 -> 0 | Z3: 0 | AA3: 0 | AB3: 0 | AC3: 0 | AD3: 0
A4: Nom Orifice variable | D4: =IF(D3<>"",CONCATENATE("Ov_",D3),"") ->  | L4: Test données 2 orifices | M4: =IF(AND(E28<>"",D28<>""),TRUE,FALSE) -> FALSE | O4: Test données 1 orifice | P4: =IF(D28<>"",TRUE,FALSE) -> FALSE | V4: Données interpollée | W4: =MAX(Y7:AC7) ->  | X4: Données Y | Y4: =D21 -> 0 | Z4: 0.01 | AA4: 0 | AB4: 0 | AC4: 0 | AD4: 0
A5: Zone pluviométrique | C5: =IF(Projet!C1=TRUE,Projet!C7,"") ->  | L5: Test actuel/volume | M5: =IF(AND(E17<>"",F17<>"",G17<>"",H17<>"",I17<>"",E18<>"",F18<>"",G18<>"",H18<>"",I18<>""),TRUE,FALSE) -> FALSE | V5: Données sortante | X5: Test intervalle | Y5: =IF(AND(W3>=Y3,W3<=Z3),TRUE,FALSE) -> TRUE | Z5: =IF(AND(W3>Z3,W3<=AA3),TRUE,FALSE) -> FALSE | AA5: =IF(AND(W3>AA3,W3<=AB3),TRUE,FALSE) -> FALSE | AB5: =IF(AND(W3>AB3,W3<=AC3),TRUE,FALSE) -> FALSE | AC5: =IF(AND(W3>AC3,W3<=AD3),TRUE,FALSE) -> FALSE
L6: Données bassin croissant | X6: Pente Intervalle | Y6: =(Z4-Y4)/(Z3-Y3) ->  | Z6: =(AA4-Z4)/(AA3-Z3) -> 
A7: Description synthétique de la régulation | L7: Test données Hauteur | M7: =IF(E21<>"",TRUE,FALSE) -> TRUE | N7: =IF(F21<>"",TRUE,FALSE) -> FALSE | O7: =IF(G21<>"",TRUE,FALSE) -> FALSE | P7: =IF(H21<>"",TRUE,FALSE) -> FALSE | Q7: =IF(I21<>"",TRUE,FALSE) -> FALSE | X7: Interpolation | Y7: =IF(Y5,(W3-Y3)*Y6+Y4,"") ->  | Z7: =IF(Z5,(W3-Z3)*Z6+Z4,"") ->  | AA7: =IF(AA5,(W3-AA3)*AA6+AA4,"") ->  | AB7: =IF(AB5,(W3-AB3)*AB6+AB4,"") ->  | AC7: =IF(AC5,(W3-AC3)*AC6+AC4,"") -> 
L8: Test croissance | M8: =IF(M7=FALSE,TRUE,IF(E21>D21,TRUE,FALSE)) -> TRUE | N8: =IF(N7=FALSE,TRUE,IF(F21>E21,TRUE,FALSE)) -> TRUE | O8: =IF(O7=FALSE,TRUE,IF(G21>F21,TRUE,FALSE)) -> TRUE | P8: =IF(P7=FALSE,TRUE,IF(H21>G21,TRUE,FALSE)) -> TRUE | Q8: =IF(Q7=FALSE,TRUE,IF(I21>H21,TRUE,FALSE)) -> TRUE
V9: Interpolation volume 5 ans sur loi H-V bassin
X10: Intervalle | Y10: =Y2 -> 0 | Z10: 1 | AA10: 2 | AB10: 3 | AC10: 4 | AD10: 5
L11: Test données volume | M11: =IF(E22<>"",TRUE,FALSE) -> FALSE | N11: =IF(F22<>"",TRUE,FALSE) -> FALSE | O11: =IF(G22<>"",TRUE,FALSE) -> FALSE | P11: =IF(H22<>"",TRUE,FALSE) -> FALSE | Q11: =IF(I22<>"",TRUE,FALSE) -> FALSE | V11: Données entrante | W11: =F18 -> 0 | X11: Données X | Y11: 0 | Z11: 0 | AA11: 0 | AB11: 0 | AC11: 0 | AD11: 0
A12: Données | L12: Test croissance | M12: =IF(M11=FALSE,TRUE,IF(E22>D22,TRUE,FALSE)) -> TRUE | N12: =IF(N11=FALSE,TRUE,IF(F22>E22,TRUE,FALSE)) -> TRUE | O12: =IF(O11=FALSE,TRUE,IF(G22>F22,TRUE,FALSE)) -> TRUE | P12: =IF(P11=FALSE,TRUE,IF(H22>G22,TRUE,FALSE)) -> TRUE | Q12: =IF(Q11=FALSE,TRUE,IF(I22>H22,TRUE,FALSE)) -> TRUE | V12: Données sortante | W12: =MAX(Y15:AC15) ->  | X12: Données Y | Y12: 0 | Z12: 0.01 | AA12: 0 | AB12: 0 | AC12: 0 | AD12: 0
B13: Objectifs hydrauliques | L13: TestQR2 (données croissante) | M13: =AND(M8,N8,O8,P8,Q8,M12,N12,O12,P12,Q12) -> TRUE | X13: Test intervalle | Y13: =IF(AND(W11>=Y11,W11<=Z11),TRUE,FALSE) -> TRUE | Z13: =IF(AND(W11>Z11,W11<=AA11),TRUE,FALSE) -> FALSE | AA13: =IF(AND(W11>AA11,W11<=AB11),TRUE,FALSE) -> FALSE | AB13: =IF(AND(W11>AB11,W11<=AC11),TRUE,FALSE) -> FALSE | AC13: =IF(AND(W11>AC11,W11<=AD11),TRUE,FALSE) -> FALSE
B14: Période retour dimensionnement compensation (année) | X14: Pente Intervalle | Y14: =(Z12-Y12)/(Z11-Y11) ->  | Z14: =(AA12-Z12)/(AA11-Z11) -> 
L15: V max >=Và stocker | X15: Interpolation | Y15: =IF(Y13,(W11-Y11)*Y14+Y12,"") ->  | Z15: =IF(Z13,(W11-Z11)*Z14+Z12,"") ->  | AA15: =IF(AA13,(W11-AA11)*AA14+AA12,"") ->  | AB15: =IF(AB13,(W11-AB11)*AB14+AB12,"") ->  | AC15: =IF(AC13,(W11-AC11)*AC14+AC12,"") -> 
B16: Période de retour | E16: 2 ans | F16: 5 ans | G16: 10 ans | H16: 20 ans | I16: 30 ans | L16: V à stocker | M16: =_xlfn.IFS(H14="",10000,H14=2,E18,H14=5,F18,H14=10,G18,H14=20,H18,H14=30,I18) -> 10000
B17: Débit initial (l/s) | L17: Vmax | M17: =MAX(E22:I22) -> 0 | V17: Interpolation volume 10 ans sur loi H-V bassin
B18: Volume mini à stocker (m3) (pourQfuite débit inital) | L18: TestQR3 (volume suffisant) | M18: =IF(M17>=M16,TRUE,FALSE) -> FALSE | X18: Intervalle | Y18: =Y10 -> 0 | Z18: =Z10 -> 1 | AA18: 2 | AB18: 3 | AC18: 4 | AD18: 5
B19: Voir observation 1 (dans l'encadrée à droite) | V19: Données entrante | W19: =G18 -> 0 | X19: Données X | Y19: =Y11 -> 0 | Z19: 0 | AA19: 0 | AB19: 0 | AC19: 0 | AD19: 0
B20: Caractéristiques du bassin | L20: Données entrée et valides | V20: Données sortante | W20: =MAX(Y23:AC23) ->  | X20: Données Y | Y20: =Y12 -> 0 | Z20: 0.01 | AA20: 0 | AB20: 0 | AC20: 0 | AD20: 0
A21: Hauteur d'eau dans le stockage (m) | D21: 0 | E21: 0.01 | L21: TestQR4 total 1 orifice | M21: =AND(M3,M13,M18,M5) -> FALSE | X21: Test intervalle | Y21: =IF(AND(W19>=Y19,W19<=Z19),TRUE,FALSE) -> TRUE | Z21: =IF(AND(W19>Z19,W19<=AA19),TRUE,FALSE) -> FALSE | AA21: =IF(AND(W19>AA19,W19<=AB19),TRUE,FALSE) -> FALSE | AB21: =IF(AND(W19>AB19,W19<=AC19),TRUE,FALSE) -> FALSE | AC21: =IF(AND(W19>AC19,W19<=AD19),TRUE,FALSE) -> FALSE
A22: Volume du bassin (m3) | D22: 0 | L22: TestQR4 2 orifices | M22: =AND(M3,P4,M5,M13,M18,M4) -> FALSE | X22: Pente Intervalle | Y22: =(Z20-Y20)/(Z19-Y19) ->  | Z22: =(AA20-Z20)/(AA19-Z19) -> 
A23: Voir observation 2 (dans l'encadrée à droite) | X23: Interpolation | Y23: =IF(Y21,(W19-Y19)*Y22+Y20,"") ->  | Z23: =IF(Z21,(W19-Z19)*Z22+Z20,"") ->  | AA23: =IF(AA21,(W19-AA19)*AA22+AA20,"") ->  | AB23: =IF(AB21,(W19-AB19)*AB22+AB20,"") ->  | AC23: =IF(AC21,(W19-AC19)*AC22+AC20,"") -> 
A24: Caractéristiques orifice(s) | L24: Test affichage résultats suivant objectif et présence de données valides
D25: Orifice 1 | E25: Orifice 2 | L25: Période de retour | M25: 2 | N25: 5 | O25: 10 | P25: 20 | Q25: 30 | V25: Interpolation volume 20 ans sur loi H-V bassin
A26: Surface orifice (cm²) | L26: Test | M26: =IF(M25<=$H$14,TRUE,FALSE) -> FALSE | N26: =IF(N25<=$H$14,TRUE,FALSE) -> FALSE | O26: =IF(O25<=$H$14,TRUE,FALSE) -> FALSE | P26: =IF(P25<=$H$14,TRUE,FALSE) -> FALSE | Q26: =IF(Q25<=$H$14,TRUE,FALSE) -> FALSE | X26: Intervalle | Y26: =Y18 -> 0 | Z26: =Z18 -> 1 | AA26: 2 | AB26: 3 | AC26: 4 | AD26: 5
A27: Diamètre equ. (cm) | D27: =IF(D26<>"",2*SQRT(D26/3.1416),"") ->  | E27: =IF(E26<>"",2*SQRT(E26/3.1416),"") ->  | L27: TestQR5 | M27: =AND($M$3,$M$13,M18,M26) -> FALSE | N27: =AND($M$3,$M$13,M18,N26) -> FALSE | O27: =AND($M$3,$M$13,M18,O26) -> FALSE | P27: =AND($M$3,$M$13,M18,P26) -> FALSE | Q27: =AND($M$3,$M$13,M18,Q26) -> FALSE | V27: Données entrante | W27: =H18 -> 0 | X27: Données X | Y27: =Y19 -> 0 | Z27: 0 | AA27: 0 | AB27: 0 | AC27: 0 | AD27: 0
A28: Coefficient de débit m* | F28: *m voir valeurs Fiche Orifice_Qfixe | V28: Données sortante | W28: =MAX(Y31:AC31) ->  | X28: Données Y | Y28: =Y20 -> 0 | Z28: 0.01 | AA28: 0 | AB28: 0 | AC28: 0 | AD28: 0
A29: Fil d'eau orifice / fond (m)** | D29: 0 | F29: ** Voir schéma --> | X29: Test intervalle | Y29: =IF(AND(W27>=Y27,W27<=Z27),TRUE,FALSE) -> TRUE | Z29: =IF(AND(W27>Z27,W27<=AA27),TRUE,FALSE) -> FALSE | AA29: =IF(AND(W27>AA27,W27<=AB27),TRUE,FALSE) -> FALSE | AB29: =IF(AND(W27>AB27,W27<=AC27),TRUE,FALSE) -> FALSE | AC29: =IF(AND(W27>AC27,W27<=AD27),TRUE,FALSE) -> FALSE
X30: Pente Intervalle | Y30: =(Z28-Y28)/(Z27-Y27) ->  | Z30: =(AA28-Z28)/(AA27-Z27) -> 
A31: Surface orifice minimum (cm²) | X31: Interpolation | Y31: =IF(Y29,(W27-Y27)*Y30+Y28,"") ->  | Z31: =IF(Z29,(W27-Z27)*Z30+Z28,"") ->  | AA31: =IF(AA29,(W27-AA27)*AA30+AA28,"") ->  | AB31: =IF(AB29,(W27-AB27)*AB30+AB28,"") ->  | AC31: =IF(AC29,(W27-AC27)*AC30+AC28,"") -> 
A32: Voir observation 3 (dans l'encadré à droite)
L33: Analyse solveur | M33: 2 ans | N33: 5 ans | O33: 10 ans | P33: 20 ans | Q33: 30 ans | R33: Somme | V33: Interpolation volume 30 ans sur loi H-V bassin
A34: Résultats | L34: Ecart | M34: =IF(O50<>"",O58/E17,"") ->  | N34: =IF(P50<>"",P58/F17,"") ->  | O34: =IF(Q50<>"",Q58/G17,"") ->  | P34: =IF(R50<>"",R58/H17,"") ->  | Q34: =IF(S50<>"",S58/I17,"") ->  | R34: =SUM(M34:Q34) -> 0 | X34: Intervalle | Y34: =Y26 -> 0 | Z34: =Z26 -> 1 | AA34: 2 | AB34: 3 | AC34: 4 | AD34: 5
B35: Période de retour | E35: 2 ans | F35: 5 ans | G35: 10 ans | H35: 20 ans | I35: 30 ans | L35: Ecart absolu | M35: =IF(M34<>"",ABS(M34),0) -> 0 | N35: =IF(N34<>"",ABS(N34),0) -> 0 | O35: 0 | P35: 0 | Q35: 0 | R35: =SUM(M35:Q35) -> 0 | V35: Données entrante | W35: =I18 -> 0 | X35: Données X | Y35: =Y27 -> 0 | Z35: 0 | AA35: 0 | AB35: 0 | AC35: 0 | AD35: 0
B36: Heau dans le bassin (m) | E36: =IF(M27,W4,"") ->  | F36: =IF(N27,W12,"") ->  | G36: =IF(O27,W20,"") ->  | H36: =IF(P27,W28,"") ->  | I36: =IF(Q27,W36,"") ->  | V36: Données sortante | W36: =MAX(Y39:AC39) ->  | X36: Données Y | Y36: =Y28 -> 0 | Z36: 0.01 | AA36: 0 | AB36: 0 | AC36: 0 | AD36: 0
B37: Q Orifice1 (l/s) | E37: =O50 ->  | F37: =P50 ->  | L37: Min orifice | M37: =D31 -> 0 | X37: Test intervalle | Y37: =IF(AND(W35>=Y35,W35<=Z35),TRUE,FALSE) -> TRUE | Z37: =IF(AND(W35>Z35,W35<=AA35),TRUE,FALSE) -> FALSE | AA37: =IF(AND(W35>AA35,W35<=AB35),TRUE,FALSE) -> FALSE | AB37: =IF(AND(W35>AB35,W35<=AC35),TRUE,FALSE) -> FALSE | AC37: =IF(AND(W35>AC35,W35<=AD35),TRUE,FALSE) -> FALSE
B38: Q Orifice2 (l/s) | E38: =O56 ->  | F38: =P56 ->  | L38: Max orifice | M38: =I17/SQRT(2*9.81)/0.5/SQRT(M40)*100*100/1000 -> 0 | X38: Pente Intervalle | Y38: =(Z36-Y36)/(Z35-Y35) ->  | Z38: =(AA36-Z36)/(AA35-Z35) -> 
B39: Q Orifice 1+2 (l/s) | E39: =O57 ->  | F39: =P57 ->  | L39: Min hauteur orifice | M39: 0 | X39: Interpolation | Y39: =IF(Y37,(W35-Y35)*Y38+Y36,"") ->  | Z39: =IF(Z37,(W35-Z35)*Z38+Z36,"") ->  | AA39: =IF(AA37,(W35-AA35)*AA38+AA36,"") ->  | AB39: =IF(AB37,(W35-AB35)*AB38+AB36,"") ->  | AC39: =IF(AC37,(W35-AC35)*AC38+AC36,"") -> 
L40: Max hauteur orifice | M40: =MAX(D21:I21) -> 0.01
B41: Q rejeté-Qinitial (l/s) | E41: =IF(E$37<>"",E39-E17,"") ->  | F41: =IF(F$37<>"",F39-F17,"") ->  | G41: =IF(G$37<>"",G39-G17,"") ->  | H41: =IF(H$37<>"",H39-H17,"") ->  | I41: =IF(I$37<>"",I39-I17,"") ->  | L41: ZOrifice 2 | M41: =E27+E29/100/2 -> 
B42: Ecart en % | E42: =IF(E37<>"",E41/E17,"") ->  | F42: =IF(F37<>"",F41/F17,"") ->  | G42: =IF(G37<>"",G41/G17,"") ->  | H42: =IF(H37<>"",H41/H17,"") ->  | I42: =IF(I37<>"",I41/I17,"") ->  | L42: Zmax Orifice2 | M42: =M40 -> 0.01
B44: Volume max bassin (m3) | E44: =IF(M21,MAX(E22:I22),"") ->  | F44: Volume à stocker (m3) | I44: =IF(M21, IF(H14=2, E18,IF(H14=5, F18, IF(H14=10, G18, IF(H14=20, H18, IF(H14=30, I18, ""))))),"") -> 
B45: Vmax bassin - Và stocker (m3) | F45: =IF(M21,E44-I44,"") ->  | L45: Période de retour | O45: 2 ans | P45: 5 ans | Q45: 10 ans | R45: 20 ans | S45: 30 ans
L46: Test QR5 | O46: =AND($M$21,M27) -> FALSE | P46: =N27 -> FALSE | Q46: FALSE | R46: FALSE | S46: FALSE
L47: Test Surface orifice1 présent | O47: =IF($D$26<>"",TRUE,FALSE) -> FALSE | P47: =IF($D$26<>"",TRUE,FALSE) -> FALSE | Q47: FALSE | R47: FALSE | S47: FALSE
L48: Calcul possible Orifice 1 | O48: =AND(O46,O47,$P$4) -> FALSE | P48: =AND(P46,P47,$P$4) -> FALSE | Q48: FALSE | R48: FALSE | S48: FALSE
L49: Heau dans le bassin (m) / orifice 1 | O49: =E36 ->  | P49: =F36 ->  | Q49: =G36 ->  | R49: =H36 ->  | S49: =I36 -> 
L50: Q Orifice1 (l/s) | O50: =IF(O48,$D$26*$D$28/(100*100)*SQRT(2*9.81*(O49-$D$27/2/100))*1000,"") ->  | P50: =IF(P48,$D$26*$D$28/(100*100)*SQRT(2*9.81*(P49-$D$27/2/100))*1000,"") -> 
L51: Heau dans le bassin (m) / orifice 2 | O51: =IF(O46,O49-$E$29,"") ->  | P51: =IF(P46,P49-$E$29,"") ->  | Q51: =IF(Q46,Q49-$E$29,"") ->  | R51: =IF(R46,R49-$E$29,"") ->  | S51: =IF(S46,S49-$E$29,"") -> 
L52: Test Surface orifice2 présent | O52: =IF($E$26<>"",TRUE, FALSE) -> FALSE | P52: =IF($E$26<>"",TRUE, FALSE) -> FALSE | Q52: FALSE | R52: FALSE | S52: FALSE
L53: Test calcul orifice 2 | O53: =AND(O46,$M$22,O52) -> FALSE | P53: =AND(P46,$M$22,P52) -> FALSE | Q53: FALSE | R53: FALSE | S53: FALSE
L54: Diamètre orifice | O54: =IF($M$22,$E$27,0) -> 0 | P54: =IF($M$22,$E$27,0) -> 0 | Q54: 0 | R54: 0 | S54: 0
L55: Test Horifice 2>D/2 | O55: =IF(O53,IF(O51>O54/2/100,TRUE, FALSE)) -> FALSE | P55: =IF(P53,IF(P51>P54/2/100,TRUE, FALSE)) -> FALSE | Q55: FALSE | R55: FALSE | S55: FALSE
L56: Q Orifice2 (l/s) | O56: =IF(AND(O53,O55),$E$26*$E$28/(100*100)*SQRT(2*9.81*(O51-$E$27/2/100))*1000,"") ->  | P56: =IF(AND(P53,P55),$E$26*$E$28/(100*100)*SQRT(2*9.81*(P51-$E$27/2/100))*1000,"") ->  | Q56: =IF(AND(Q53,Q55),$E$26*$E$28/(100*100)*SQRT(2*9.81*(Q51-$E$27/2/100))*1000,"") ->  | R56: =IF(AND(R53,R55),$E$26*$E$28/(100*100)*SQRT(2*9.81*(R51-$E$27/2/100))*1000,"") ->  | S56: =IF(AND(S53,S55),$E$26*$E$28/(100*100)*SQRT(2*9.81*(S51-$E$27/2/100))*1000,"") -> 
L57: Q Orifice 1+2 (l/s) | O57: =IF(AND(O48,O53,O55),O50+O56,IF(O48=TRUE,O50,"")) ->  | P57: =IF(AND(P48,P53,P55),P50+P56,IF(P48=TRUE,P50,"")) -> 
L58: Q rejeté-Qinitial (l/s) | O58: =IF(O50<>"",O57-E17,"") ->  | P58: =IF(P50<>"",P57-F17,"") ->  | Q58: =IF(Q50<>"",Q57-G17,"") ->  | R58: =IF(R50<>"",R57-H17,"") ->  | S58: =IF(S50<>"",S57-I17,"") -> 
A62: =CONCATENATE("Version ",(MAX('Liste versions'!$B$4:$B$30))," de la feuille Excel du ",DAY(MAX('Liste versions'!$A$4:$A$30)),"/",MONTH(MAX('Liste versions'!$A$4:$A$30)),"/",YEAR(MAX('Liste versions'!$A$4:$A$30))," - hydro-expertise.com") -> Version 5 de la feuille Excel du 21/4/2025 - hydro-expertise.com | I62: =Introduction!$H$43 -> DEAL Réunion
E99: 0

Sheet Deversoir (hidden)
A1: N° Fiche | L1: TestQR1 (données entrées) | M1: =IF(AND(H17<>"",H18<>"",H19<>""),TRUE,FALSE) -> FALSE
A2: Nom Projet | B2: =IF(Projet!C1=TRUE,Projet!C6,"") ->  | L2: TestQR2 (données entrées) | M2: =IF(AND(H25<>"",H26<>"",H27<>""),TRUE,FALSE) -> FALSE
A3: Nom du BV
A4: Nom Déversoir | D4: =IF(D3<>"",CONCATENATE("Od_",D3),"") -> 
A5: Zone pluviométrique | C5: =IF(Projet!C1=TRUE,Projet!C7,"") -> 
A7: Description synthétique de la surverse
A15: 1: Débit et hauteur de surverse connus
B17: Q : Débit de surverse (l/s)
B18: H : Hauteur d'eau sur déversoir (m)
B19: Coefficient de débit m
B20: L :Linéaire de surverse (m) | H20: =IF(M1=TRUE,H17/(H19*SQRT(2*9.81)*H18^1.5*1000),"") -> 
A23: 2: Débit et longueur de surverse connus
B25: Q : Débit de surverse (l/s)
B26: L :Linéaire de surverse (m)
B27: Coefficient de débit m
B28: H : Hauteur d'eau sur déversoir (m) | H28: =IF(M2=TRUE,(H25/1000/(H26*H27*SQRT(2*9.81))^(2/3)),"") -> 
A42: =CONCATENATE("Version ",(MAX('Liste versions'!$B$4:$B$30))," de la feuille Excel du ",DAY(MAX('Liste versions'!$A$4:$A$30)),"/",MONTH(MAX('Liste versions'!$A$4:$A$30)),"/",YEAR(MAX('Liste versions'!$A$4:$A$30))," - hydro-expertise.com") -> Version 5 de la feuille Excel du 21/4/2025 - hydro-expertise.com | I42: =Introduction!$H$43 -> DEAL Réunion

Sheet Réseau (hidden)
A1: N° Fiche | L1: TestQR1 (données entrées) | M1: =IF(AND(C20<>0,C22<>0,C25<>0,C26<>0,C21<>0),TRUE,FALSE) -> FALSE
A2: Nom Projet | L2: TestQR2 (données entrées) | M2: =IF(AND(F20<>0,F21<>0,F25<>0,F26<>0),TRUE,FALSE) -> FALSE
A3: Nom du BV | L3: TestQR3 (données entrées) | M3: =IF(AND(I20<>0,I22<>0,I23<>0,I25<>0,I26<>0,I21>0),TRUE,FALSE) -> FALSE
A4: Nom Ouvrage réseau | C4: =IF(C3<>"",CONCATENATE("Or_",C3),"") -> 
A5: Zone pluviométrique | C5: =IF(Projet!C1=TRUE,Projet!C7,"") -> 
A7: Description
A15: Calcul de la capacité d'un ouvrage
A17: Voir observations ci-contre sur les limites de la méthode de calcul.
B19: Ouvrage cadre | E19: Collecteur circulaire | H19: Fossé
B20: Heau (m) | E20: Heau (m) | H20: Heau (m)
B21: Hauteur ouvrage (m) | E21: Diamètre (m) | H21: Hauteur ouvrage (m)
B22: Largeur (m) | H22: Largeur en fond (m)
H23: Fruit talus (H/V)
B25: Strickler | E25: Strickler | H25: Strickler
B26: Pente (m/m) | E26: Pente (m/m) | H26: Pente (m/m)
H27: Largeur en crête (m) | I27: =IF(M3=TRUE,I21*I23*2+I22,"") -> 
C28: 0 | F28: =2*ACOS((F29/(F21/2))-1) ->  | I28: =I22+2*SQRT(I20^2+(I20*I23)^2) -> 0
C29: =C22+2*SQRT(C20^2+(C28*C20)^2) -> 0 | F29: =F21-F20 -> 0 | I29: =I22*I20+I20*I23*I20 -> 0
C30: =C22*C20+C20*C28*C20 -> 0 | F30: =F28*F21/2 ->  | I30: =I29/I28 -> 
C31: =C30/C29 ->  | F31: =(F21/2)^2*(F28-SIN(F28))/2 ->  | I31: =I22+2*I20*I23 -> 0
F32: =IF(F20=0,0,F31/F30) -> 0
F33: =F21*SIN(F28/2) -> 
A35: Débit (l/s) | B35: =IF(M1=TRUE,C25*SQRT(C26)*C30*C31^(2/3)*1000,"") ->  | E35: =IF(M2=TRUE,F25*SQRT(F26)*F31*F32^(2/3)*1000,"") ->  | H35: =IF(M3=TRUE,I25*SQRT(I26)*I29*I30^(2/3)*1000,"") -> 
A36: Vitesse (m/s) | B36: =IF(M1=TRUE,IF(B35=0,0,B35/1000/C30),"") ->  | E36: =IF(M2=TRUE,IF(E35=0,0,E35/1000/F31),"") ->  | H36: =IF(M3=TRUE,H35/1000/I29,"") -> 
A37: Hauteur de charge (m) | B37: =IF(M1=TRUE,C20+B36^2/20,"") ->  | E37: =IF(M2=TRUE,F20+E36^2/20,"") ->  | H37: =IF(M3=TRUE,I20+H36^2/20,"") -> 
A38: Froude | B38: =IF(M1=TRUE,SQRT((B35/1000)^2*C22/9.81/C30^3),"") ->  | E38: =IF(M2=TRUE,SQRT((E35/1000)^2*F33/9.81/F31^3),"") ->  | H38: =IF(M3=TRUE,SQRT((H35/1000)^2*I31/(9.81*I29^3)),"") -> 
A40: Observations | B40: =IF(AND(M1,B36>4),"Vitesse élevée > 4 m/s","") ->  | E40: =IF(AND(M2,E36>4),"Vitesse élevée > 4 m/s","") ->  | H40: =IF(AND(M3,H36>4),"Vitesse élevée > 4 m/s","") -> 
B41: =IF(AND(M1,B37>C21),"H Charge > Sous face ouvrage","") ->  | E41: =IF(AND(M2,E37>F21),"H Charge > sous-face","") ->  | H41: =IF(AND(M3,H37>I21),"H charge > hauteur fossé","") -> 
A59: =CONCATENATE("Version ",(MAX('Liste versions'!$B$4:$B$30))," de la feuille Excel du ",DAY(MAX('Liste versions'!$A$4:$A$30)),"/",MONTH(MAX('Liste versions'!$A$4:$A$30)),"/",YEAR(MAX('Liste versions'!$A$4:$A$30))," - hydro-expertise.com") -> Version 5 de la feuille Excel du 21/4/2025 - hydro-expertise.com | I59: =Introduction!$H$43 -> DEAL Réunion
